Cogmind - Beta 16 @@@ ROGUE MODE // 2025.11.08 @ 17:33:28 Player: C0-2MO Result: Heading to fleet! Performance ------------- Evolutions (9) 4500 Regions Visited (37) 7400 Robots Destroyed (143) 715 Value Destroyed (5169) 5169 Prototype IDs (368) 7360 Alien Tech Used (9) 1800 Bonus (46243) 46243 TOTAL SCORE: 73187 Bonus ------- Triggered High Security 1000 Triggered Max Security 2000 High Alert Combat Kills 2000 Follower Combat Kills 4931 Awakened Behemoth Slayer 1000 Network Hubs Disabled 600 Met Data Miner 300 Met Imprinter 300 Was Imprinted 300 Met Warlord at Base 500 MAIN.C Attacked Warlord 500 Used Core Reset Matrix 3000 Scanned by Researcher 500 Pursued by Intercept 1000 Integrated Exoskeleton 5000 Destroyed MAIN.C Guards 500 Met MAIN.C 5000 Destroyed MAIN.C Shell 5000 Destroyed MAIN.C 10000 Win 3000 Friendly Fire -188 Cogmind --------- Core Integrity 392/1850 Matter 300/300 Energy 338/340 System Corruption 0% Temperature Cool (0) Movement Walking (30) Location To Fleet Rendezvous Parts ------- > --- POWER (1) -------- Zero-point Reactor > --- PROPULSION (3) --- Sigix Exoskeleton > --- UTILITY (3) ------ Experimental Targeting Computer Thermal Barrier AEGIS Remote Shield > --- WEAPON (4) ------- Sigix Sheargun Sigix Sheargun Sigix Sheargun Sigix Sheargun > --- INVENTORY (5) ---- Zero-point Reactor Experimental Weapon Cycler High-powered Transdimensional Reconstructor Peak State ------------ > --- POWER ------------ Light Quantum Reactor > --- PROPULSION ------- Sigix Exoskeleton > --- UTILITY ---------- Microwarp Drive > --- WEAPON ----------- Sigix Sheargun Sigix Sheargun Sigix Sheargun Sigix Sheargun > --- INVENTORY -------- Improved Hacking Suite Advanced Hacking Suite High-powered Transdimensional Reconstructor CR-A16's Behemoth Slayer [Rating: 260] Favorites ----------- Power Backup Power VII Engine Backup Power III Power Core Backup Power VII Reactor Light Antimatter Reactor Propulsion Cesium-ion Thruster Leg Sigix Exoskeleton Flight Unit Cesium-ion Thruster Utility Medium Storage Unit Device Structural Scanner Storage Medium Storage Unit Processor Experimental Signal Interpreter Hackware Advanced Hacking Suite Protection Improved Propulsion Shielding Artifact Microwarp Drive Weapon Sigix Sheargun Energy Gun Sigix Sheargun Energy Cannon Cooled Nova Cannon Ballistic Gun Light Assault Rifle Ballistic Cannon Light Cannon Launcher Mini Grenade Launcher Special Weapon Mining Laser Impact Weapon Heavy Flail Slashing Weapon Makeshift Sword Piercing Weapon CR-A16's Behemoth Slayer Special Melee Weapon Improved Datajack Build | -11 -10 -10 -10 -9 -8 -7 -7 -7 -7 -7 -7 -6 -6 -6 -6 -6 -5 -5 -5 -5 -5 -5 -5 -4 -4 -4 -4 -4 -4 -4 -4 -3 -2 -2 -2 -1 -1 ------- Run | Yrd Mat Min Exi Min Mat Fac Was Fac Low Low Dat Pro Fac Low Low Zio Pro Fac Was Fac Upp Upp War Pro Fac Was Fac Ext Cet Arc Hub Res Res Tes Sec Acc Com Slots Evolved 18 | . . . . . 4 2 . . . . . . 2 . . . . 2 . . . . . . 2 . . . . . . 2 2 . . 2 . Power 1 | . . . . . . . . . . . . . 1 . . . . . . . . . . . . . . . . . . . . . . . . Propulsion 5 | . . . . . 3 . . . . . . . . . . . . . . . . . . . 1 . . . . . . . 1 . . . . Utility 10 | . . . . . 1 2 . . . . . . 1 . . . . 2 . . . . . . 1 . . . . . . 2 1 . . . . Weapon 2 | . . . . . . . . . . . . . . . . . . . . . . . . . . . . . . . . . . . . 2 . Parts Attached 219 | 2 13 4 . 4 10 2 4 19 . 1 . 7 8 . . 2 . 6 . 11 . 1 4 1 21 . 12 6 . 1 5 10 14 5 4 5 37 Power 31 | . 2 . . . 1 . . 4 . . . 1 1 . . . . 1 . 3 . . . . 5 . 4 . . . . . 4 . . 2 3 Engine 8 | . 2 . . . 1 . . 2 . . . . . . . . . . . 1 . . . . 1 . 1 . . . . . . . . . . Core 14 | . . . . . . . . 2 . . . 1 1 . . . . 1 . 2 . . . . 2 . 2 . . . . . 2 . . 1 . Reactor 9 | . . . . . . . . . . . . . . . . . . . . . . . . . 2 . 1 . . . . . 2 . . 1 3 Propulsion 36 | . 3 2 . 3 5 . . 8 . 1 . 1 2 . . . . . . 2 . . 1 . 2 . . . . . 1 1 3 1 . . . Treads . | . . . . . . . . . . . . . . . . . . . . . . . . . . . . . . . . . . . . . . Leg . | . . . . . . . . . . . . . . . . . . . . . . . . . . . . . . . . . . . . . . Wheel . | . . . . . . . . . . . . . . . . . . . . . . . . . . . . . . . . . . . . . . Hover . | . . . . . . . . . . . . . . . . . . . . . . . . . . . . . . . . . . . . . . Flight 36 | . 3 2 . 3 5 . . 8 . 1 . 1 2 . . . . . . 2 . . 1 . 2 . . . . . 1 1 3 1 . . . Utility 114 | 1 3 1 . . 2 1 4 4 . . . 2 5 . . 1 . 5 . 5 . . 3 . 13 . 6 3 . 1 3 7 7 2 3 . 32 Device 60 | 1 1 1 . . . . 1 3 . . . 1 2 . . 1 . 2 . 3 . . 1 . 7 . 3 2 . . 1 4 3 2 2 . 19 Storage 10 | . 1 . . . 1 . . . . . . . . . . . . 2 . . . . . . . . 1 . . . . . 2 . . . 3 Processor 9 | . . . . . . . . 1 . . . 1 . . . . . . . 1 . . 1 . . . . . . . . 1 1 . . . 3 Hackware 20 | . . . . . 1 1 . . . . . . 3 . . . . 1 . 1 . . 1 . 5 . 2 . . 1 2 . . . . . 2 Protection 14 | . 1 . . . . . 3 . . . . . . . . . . . . . . . . . 1 . . 1 . . . 2 1 . . . 5 Artifact 1 | . . . . . . . . . . . . . . . . . . . . . . . . . . . . . . . . . . . 1 . . Weapon 38 | 1 5 1 . 1 2 1 . 3 . . . 3 . . . 1 . . . 1 . 1 . 1 1 . 2 3 . . 1 2 . 2 1 3 2 Energy Gun 7 | . . . . . . . . . . . . . . . . . . . . . . . . . . . 1 . . . . . . 1 1 3 1 Energy Cannon 2 | . . . . . . . . . . . . . . . . . . . . . . . . . . . . . . . . . . 1 . . 1 Ballistic Gun 7 | 1 3 . . . 1 . . . . . . . . . . . . . . . . . . . . . . 2 . . . . . . . . . Ballistic Cannon 2 | . 1 . . . . . . . . . . . . . . . . . . . . . . . . . . 1 . . . . . . . . . Launcher 5 | . . . . 1 . 1 . . . . . 2 . . . . . . . . . . . . . . . . . . . 1 . . . . . Special Weapon 2 | . 1 . . . . . . . . . . . . . . . . . . . . . . . . . . . . . 1 . . . . . . Impact Weapon 1 | . . . . . 1 . . . . . . . . . . . . . . . . . . . . . . . . . . . . . . . . Slashing Weapon 8 | . . 1 . . . . . 2 . . . . . . . 1 . . . 1 . 1 . 1 . . . . . . . 1 . . . . . Piercing Weapon 2 | . . . . . . . . . . . . . . . . . . . . . . . . . 1 . 1 . . . . . . . . . . Special Melee Weapon 2 | . . . . . . . . 1 . . . 1 . . . . . . . . . . . . . . . . . . . . . . . . . Unidentified Prototypes 39 | . . 1 . . . . . 2 . . . 6 . . . 1 . . . . . . 3 . . . 1 2 . . 2 3 4 4 2 . 8 Parts Lost 39 | . 2 1 . 1 . . . 5 . . . . . . . . . 2 . 6 . . . . 9 . . 3 . . 1 1 4 1 2 . 1 Power 7 | . . . . . . . . 1 . . . . . . . . . . . 2 . . . . 2 . . . . . . 1 1 . . . . Propulsion 9 | . 1 1 . 1 . . . 1 . . . . . . . . . . . 1 . . . . 3 . . . . . . . . 1 . . . Utility 19 | . . . . . . . . 2 . . . . . . . . . 1 . 2 . . . . 4 . . 3 . . 1 . 3 . 2 . 1 Weapon 4 | . 1 . . . . . . 1 . . . . . . . . . 1 . 1 . . . . . . . . . . . . . . . . . Highest Loss Streak 5 | . 2 1 . 1 . . . 3 . . . . . . . . . 1 . 5 . . . . 4 . . 2 . . 1 1 3 1 2 . 1 To Critical Strikes . | . . . . . . . . . . . . . . . . . . . . . . . . . . . . . . . . . . . . . . Average Backups 8 | 1 5 8 8 8 3 6 8 9 9 10 10 10 9 10 10 10 10 8 9 9 9 10 10 10 8 9 9 9 10 10 9 9 9 9 7 4 4 Power 1 | . 1 1 1 1 . . 1 . 1 1 1 1 . 1 1 1 1 2 3 2 1 1 1 1 . 1 1 2 2 2 2 1 1 3 1 . . Propulsion 1 | . 1 3 3 3 . 2 2 2 3 3 3 3 2 2 2 2 2 2 2 1 1 1 1 2 . 2 2 2 2 2 2 2 1 1 . . . Utility 2 | . . 1 2 2 . 1 2 3 3 3 3 3 5 6 6 5 5 2 2 3 4 4 3 3 3 2 2 2 2 2 2 3 4 3 3 1 2 Weapon 1 | . 1 1 1 1 1 1 2 1 2 2 2 2 1 1 1 1 2 1 2 2 2 2 2 2 2 2 1 2 3 3 2 1 1 1 2 1 . Tool/Special . | . . . . . . . . . . . . . . . . . . . . . . . . . . . . . . . . . . . . . . Unused Backups 20 | . 1 2 . . 1 . . 3 . . . 1 3 . . 1 . 1 . 1 1 . . . . . 2 . . . . . 1 . 1 . 1 Power 4 | . 1 . . . . . . 1 . . . . . . . . . 1 . 1 . . . . . . . . . . . . . . . . . Propulsion 5 | . . 1 . . . . . 1 . . . 1 . . . . . . . . . . . . . . 1 . . . . . 1 . . . . Utility 5 | . . . . . . . . 1 . . . . 1 . . 1 . . . . 1 . . . . . . . . . . . . . 1 . . Weapon 2 | . . 1 . . . . . . . . . . 1 . . . . . . . . . . . . . . . . . . . . . . . . Tool/Special 4 | . . . . . 1 . . . . . . . 1 . . . . . . . . . . . . . 1 . . . . . . . . . 1 Average Slot Usage (%) 87 | . 60 71 71 71 98 90 97 97 92 92 92 96 99 100 100 100 100 98 89 92 94 94 94 94 81 94 93 91 89 93 96 92 91 88 79 61 77 Engine 1 | . . . . . 9 7 7 1 7 7 7 6 . . . . . . . 4 . . . . 1 5 1 . . . . . . . . . . Core 4 | . . . . . . . . 4 . . . . 11 13 13 13 13 11 11 5 11 11 11 11 5 . 3 5 5 5 5 4 6 3 2 . . Reactor 2 | . . . . . . . . . . . . . . . . . . . . . . . . . . 5 5 5 5 5 5 4 1 4 6 8 9 Leg 1 | . . . . . . . . . . . . . . . . . . . . . . . . . . . . . . . . . . . 5 9 9 Flight 25 | . 21 27 28 28 44 38 38 37 38 38 38 38 33 33 33 33 33 29 29 28 29 29 29 29 24 31 31 31 31 31 31 27 26 24 14 . . Device 12 | . 5 . . . . . . 4 7 9 7 7 11 13 13 13 13 15 12 17 17 17 17 17 19 21 21 19 21 21 19 19 20 22 13 . 6 Storage 5 | . 5 14 14 14 8 7 7 7 7 7 7 7 6 6 6 6 6 5 5 5 5 5 5 5 5 5 5 5 5 5 5 4 6 8 13 . . Processor 5 | . . . . . . . . 5 7 7 7 7 6 6 6 6 6 5 5 5 11 11 7 5 5 5 5 5 5 5 5 5 4 4 1 . 13 Hackware 8 | . . . . . 8 13 15 8 7 7 7 7 12 13 13 13 13 11 11 10 11 11 14 17 11 10 10 7 5 9 15 14 13 13 4 . 2 Protection 2 | . 1 . . . 8 7 12 8 7 4 7 6 1 . . . . 4 5 3 . . . . . 5 5 5 5 5 . 2 3 . . . . Energy Gun 5 | . . . . . . . . . . . . . . . . . . . . . . . . . . . . . . . . . . . 11 34 36 Ballistic Gun 1 | . 12 14 14 14 3 . . . . . . . . . . . . . . . . . . . . . . . . . . . . . . . . Slashing Weapon 3 | . . 3 14 13 2 . . 5 7 7 7 7 6 6 6 6 6 5 5 6 5 5 5 5 4 5 4 5 5 5 5 3 3 4 1 . . Special Melee Weapon 1 | . . . . . . . . 2 . . . 3 6 6 6 6 6 4 . . . . . . . . . . . . . . . . . . . Peak Build Rating 260 | 2 9 15 6 6 19 22 28 42 39 42 39 56 70 65 65 70 65 78 75 79 80 84 91 90 95 96 109 111 92 97 113 128 146 158 240 260 260 Average Rating 98 | 1 4 6 6 6 17 21 25 38 39 39 39 45 64 65 65 65 65 69 71 71 79 80 83 86 82 95 101 96 92 96 107 113 135 140 190 258 236 On Entrance 72 | . 2 6 6 6 6 18 22 26 39 39 39 39 54 65 65 65 65 65 75 70 79 80 80 86 86 95 96 101 92 92 97 110 121 135 141 240 260 Avg Prop Armor Cover (%) 5 | . . . . . . . . . . . . 4 4 . . . . . . . . . . . . . . . . . . . 6 . . . . Naked Turns . | . . . . . . . . . . . . . . . . . . . . . . . . . . . . . . . . . . . . . . Heaviest Build 123 | 3 8 8 8 9 21 21 21 24 22 24 22 25 29 27 27 29 25 30 29 29 29 29 29 29 34 34 36 36 34 34 35 38 46 44 41 54 123 Greatest Support 70 | 3 8 8 8 8 25 25 25 30 30 30 30 32 32 30 30 30 30 30 30 32 35 32 33 33 38 37 38 47 47 38 38 39 50 54 70 70 70 Greatest Overweight (x) 1 | . 1 1 . 1 . . . . . . . . . . . . . . . . . . . . . . . . . . . . 1 1 . . 1 Average Overweight (x) . | . . . . . . . . . . . . . . . . . . . . . . . . . . . . . . . . . . . . . . Largest Inventory Capacity 25 | 5 8 8 8 8 10 10 10 10 10 10 10 10 10 10 10 10 10 20 10 10 10 10 10 10 10 10 10 10 10 10 10 10 10 10 10 5 25 Average Capacity 8 | 5 6 8 8 8 9 10 10 10 10 10 10 10 10 10 10 10 10 10 10 10 10 10 10 10 10 10 10 10 10 10 10 10 10 10 9 5 5 Most Carried 10 | 2 8 8 8 8 7 7 9 10 10 10 10 10 10 10 10 10 10 10 9 10 10 10 10 10 10 10 10 10 10 10 10 10 10 10 10 5 5 Average Carried 8 | 1 5 7 8 7 2 6 8 9 9 10 10 9 9 10 10 10 10 8 9 9 9 10 9 10 8 9 9 9 10 10 9 9 9 9 8 4 4 Final Capacity 10 | 5 8 8 8 8 10 10 10 10 10 10 10 10 10 10 10 10 10 10 10 10 10 10 10 10 10 10 10 10 10 10 10 10 10 10 5 5 5 Final Carried 10 | 2 8 8 8 8 5 7 9 9 10 10 10 10 10 10 10 10 10 9 9 10 10 10 10 10 9 10 10 10 10 10 9 10 10 8 5 4 3 Class Distribution -------------------- 25% | Hacker-Ninja 16% | Alien-Sigix 11% | Scavenger-Sprinter 10% | Scavenger-Scout 9% | Mutant 5% | Hacker-Scout 5% | Sprinter 4% | Hacker-Sprinter Dominant Class ---------------- Mutant | -10/Materials Mutant | -10/Mines Mutant | -10/Exiles Mutant | -9/Mines Scavenger-Sprinter | -8/Materials Scavenger-Sprinter | -7/Factory Scavenger-Sprinter | -7/Waste Sprinter | -7/Factory Scavenger-Sprinter | -7/Lower Caves Scavenger-Sprinter | -7/Lower Caves Scavenger-Sprinter | -7/Data Miner Scavenger-Sprinter | -6/Proximity Caves Scavenger-Scout | -6/Factory Scavenger-Scout | -6/Lower Caves Scavenger-Scout | -6/Lower Caves Scavenger-Scout | -6/Zion Scavenger-Scout | -5/Proximity Caves Scavenger-Ninja | -5/Factory Trapper-Sprinter | -5/Waste Hacker-Ninja | -5/Factory Hacker-Ninja | -5/Upper Caves Hacker-Ninja | -5/Upper Caves Hacker-Ninja | -5/Warlord Hacker-Ninja | -4/Proximity Caves Hacker-Scout | -4/Factory Hacker-Ninja | -4/Waste Hacker-Ninja | -4/Factory Commander-Sprinter | -4/Extension Scientist-Sprinter | -4/Cetus Hacker-Sprinter | -4/Archives Hacker-Ninja | -4/Hub_04(d) Hacker-Ninja | -3/Research Hacker-Ninja | -2/Research Hacker-Ninja | -2/Testing Alien-Sigix | -2/Section 7 Alien-Sigix | -1/Access Alien-Sigix | -1/Command Resources | -11 -10 -10 -10 -9 -8 -7 -7 -7 -7 -7 -7 -6 -6 -6 -6 -6 -5 -5 -5 -5 -5 -5 -5 -4 -4 -4 -4 -4 -4 -4 -4 -3 -2 -2 -2 -1 -1 ----------- Run | Yrd Mat Min Exi Min Mat Fac Was Fac Low Low Dat Pro Fac Low Low Zio Pro Fac Was Fac Upp Upp War Pro Fac Was Fac Ext Cet Arc Hub Res Res Tes Sec Acc Com Matter Collected 5520 | 316 304 112 . 83 220 10 50 205 79 40 . 65 130 30 . 30 . 60 . 144 160 10 . 50 619 . 203 92 . 43 60 248 1138 67 457 70 425 Remotely . | . . . . . . . . . . . . . . . . . . . . . . . . . . . . . . . . . . . . . . Salvage Created 6553 | 117 293 55 . 123 216 21 . 522 . . . 26 107 . . . . 216 . 62 . . . . 472 . 242 346 . 62 94 445 1005 . 377 690 1062 Parts 376 | 4 25 6 . 7 23 . . 29 . . . 2 17 . . . . 6 . 11 . . . . 14 . 16 16 . 3 8 26 47 . 24 33 59 Haulers Intercepted 7 | . 1 . . . . . . 3 . . . . . . . . . . . . . . . . 1 . . . . . . . 2 . . . . Recyclers Shooed 6 | . . . . 1 . . . . . . . . . . . . . . . 1 . . . . 1 . . . . . . . 2 . . . 1 Parts Field Recycled . | . . . . . . . . . . . . . . . . . . . . . . . . . . . . . . . . . . . . . . Retrieved Matter . | . . . . . . . . . . . . . . . . . . . . . . . . . . . . . . . . . . . . . . Parts Self-Destructed 2 | . . . . . . . . . . . . 2 . . . . . . . . . . . . . . . . . . . . . . . . . Prevented . | . . . . . . . . . . . . . . . . . . . . . . . . . . . . . . . . . . . . . . Parts Restored . | . . . . . . . . . . . . . . . . . . . . . . . . . . . . . . . . . . . . . . Kills | -11 -10 -10 -10 -9 -8 -7 -7 -7 -7 -7 -7 -6 -6 -6 -6 -6 -5 -5 -5 -5 -5 -5 -5 -4 -4 -4 -4 -4 -4 -4 -4 -3 -2 -2 -2 -1 -1 ------- Run | Yrd Mat Min Exi Min Mat Fac Was Fac Low Low Dat Pro Fac Low Low Zio Pro Fac Was Fac Upp Upp War Pro Fac Was Fac Ext Cet Arc Hub Res Res Tes Sec Acc Com Combat Hostiles Destroyed 79 | . 9 1 . 5 12 . . 8 . . . . . . . . . . . 4 . . . . 1 . 2 2 . . 1 3 13 . 3 6 9 Melee 6 | . . 1 . 1 . . . 3 . . . . . . . . . . . . . . . . . . . 1 . . . . . . . . . Guns 22 | . 8 . . 2 . . . . . . . . . . . . . . . . . . . . . . . . . . . . . . . 3 9 Cannons 1 | . 1 . . . . . . . . . . . . . . . . . . . . . . . . . . . . . . . . . . . . AOE 35 | . . . . 2 11 . . 3 . . . . . . . . . . . 4 . . . . . . . . . . . 1 11 . 1 2 . Classes Destroyed 18 | 2 4 1 . . 1 1 . 2 . . . 1 1 . . . . . . 1 . . . . 1 . . . . . . . 2 . . . 1 Worker 10 | . . . . . 3 . . . . . . . . . . . . . . 1 . . . . . . . . . . . 1 4 . . 1 . Builder 12 | . . . . . . . . . . . . . 4 . . . . . . 1 . . . . . . . . . . . 2 4 . . 1 . Tunneler 3 | 2 . . . . 1 . . . . . . . . . . . . . . . . . . . . . . . . . . . . . . . . Hauler 7 | . 1 . . . . . . 3 . . . . . . . . . . . . . . . . 1 . . . . . . . 2 . . . . Recycler 11 | 1 . . . 1 1 . . 1 . . . . . . . . . 1 . . . . . . 2 . . 1 . . . 1 1 . . . 1 Minesweeper 1 | . . . . . . . . . . . . 1 . . . . . . . . . . . . . . . . . . . . . . . . . Mechanic 3 | . . . . . . . . 1 . . . . . . . . . . . . . . . . . . . . . . . 1 . . . . 1 Operator 7 | . 1 . . . 1 . . 1 . . . . 1 . . . . . . . . . . . . . 1 . . 2 . . . . . . . Watcher 10 | . . . . . . 1 . 1 . . . . . . . . . 3 . . . . . . . . . . . . . 1 2 . 1 1 . Swarmer 27 | . 5 . . 5 11 . . 3 . . . . . . . . . . . . . . . . . . . . . . . . 3 . . . . Cutter 7 | . . . . . . . . . . . . . . . . . . . . 4 . . . . . . . . . . . 1 1 . 1 . . Saboteur 1 | . . . . . . . . . . . . . . . . . . . . . . . . . . . . . . . . . 1 . . . . Grunt 13 | . 4 . . . . . . 2 . . . . . . . . . . . . . . . . . . . . . . . . 4 . . 3 . Protector 1 | . . . . . . . . . . . . . . . . . . . . . . . . . . . . . . . . . . . . . 1 Sentry 4 | . . 1 . . 1 . . . . . . . . . . . . . . . . . . . . . . 1 . . . . . . . . 1 Hunter 3 | . . . . . . . . . . . . . . . . . . . . . . . . . . . . . . . . . 1 . . 1 1 Programmer 8 | . . . . . . . . 3 . . . . . . . . . . . . . . . . . . . . . . . . 1 . . . 4 Behemoth 12 | . . . . . . . . . . . . . . . . . . . . . . . . . 1 . 2 1 . . 1 2 2 . 2 1 . M Shell/Def 1 | . . . . . . . . . . . . . . . . . . . . . . . . . . . . . . . . . . . . . 1 Tracker 1 | . . . . . . . . . . . . . . . . . . . . . . . . . . . . . . . . . . . . 1 . Best Kill Streak 8 | 3 4 1 . 3 7 1 . 3 . . . 1 2 . . . . 1 . 5 . . . . 1 . 1 2 . 1 1 2 8 . 1 3 4 Combat Bots Only 5 | . 3 1 . 3 4 . . 3 . . . . . . . . . . . 4 . . . . 1 . 1 1 . . 1 1 5 . 1 3 3 Max Kills in Single Turn 4 | 1 1 1 . 2 4 1 . 1 . . . 1 1 . . . . 1 . 2 . . . . 1 . 1 1 . 1 1 1 2 . 1 2 2 Gunslinging . | . . . . . . . . . . . . . . . . . . . . . . . . . . . . . . . . . . . . . . Exploded 3 | . . . . 2 3 . . 1 . . . . . . . . . . . 1 . . . . . . . . . . . 1 2 . 1 2 . Melee 1 | . . 1 . 1 . . . 1 . . . . . . . . . . . . . . . . . . . 1 . . . . . . . . . Uniques/NPCs Destroyed 2 | . . . . . . . . . . . . . . . . . . . . . . . . . . . . . . . . . . . . . 2 MAIN.C Shell (-1/Command) MAIN.C (-1/Command) Combat | -11 -10 -10 -10 -9 -8 -7 -7 -7 -7 -7 -7 -6 -6 -6 -6 -6 -5 -5 -5 -5 -5 -5 -5 -4 -4 -4 -4 -4 -4 -4 -4 -3 -2 -2 -2 -1 -1 -------- Run | Yrd Mat Min Exi Min Mat Fac Was Fac Low Low Dat Pro Fac Low Low Zio Pro Fac Was Fac Upp Upp War Pro Fac Was Fac Ext Cet Arc Hub Res Res Tes Sec Acc Com Hostile Shots Fired 1020 | . 46 3 . 40 35 9 . 85 . 6 . 12 3 6 . . . 14 . 26 2 . . 10 57 . 45 10 4 . 8 72 41 10 161 157 158 Missed 483 | . 15 2 . 15 20 5 . 42 . 5 . 7 1 4 . . . 7 . 11 1 . . 7 31 . 29 5 4 . 5 45 20 4 79 65 54 Intercepted 6 | . . . . . . . . . . . . . . . . . . . . . . . . . . . . . . . . . . . . . 6 Hits 537 | . 31 1 . 25 15 4 . 43 . 1 . 5 2 2 . . . 7 . 15 1 . . 3 26 . 16 5 . . 3 27 21 6 82 92 104 Melee 30 | . . . . . . . . . . . . . . . . . . . . 6 . . . . . . . . . . . 4 1 . 19 . . Projectile 507 | . 31 1 . 25 15 4 . 43 . 1 . 5 2 2 . . . 7 . 9 1 . . 3 26 . 16 5 . . 3 23 20 6 63 92 104 AOE 12 | . . . . . . . . . . . . . . . . . . . . . . . . . . . . . . . . 1 . . 6 . 5 Critical Strikes 27 | . . . . 1 . . . 1 . . . 1 . . . . . 1 . 4 . . . . . . . . . . . 1 2 . 10 1 5 Actively Blocked 6 | . . . . . . . . . . . . . . . . . . 1 . 2 . . . . . . . . . . . 1 1 . 1 . . Part Disruptions 1 | . . . . . . . . . . . . . . . . . . . . . . . . . . . . . . . . 1 . . . . . Actively Blocked 1 | . . . . . . . . . . . . . . . . . . . . . . . . . . . . . . . . 1 . . . . . Damage Taken 10682 | . 359 29 . 269 170 93 . 657 . 14 . 138 26 31 . . . 138 . 495 15 . . 56 645 . 377 226 . . 141 603 710 151 1583 1425 2331 Core 3377 | . 72 . . 103 38 21 . 152 . 14 . 52 . 12 . . . . . 99 15 . . 20 199 . 110 27 . . 38 105 111 . 731 772 686 Absorbed by Shields 548 | . . . . . . . . 64 . . . . . . . . . . . . . . . . . . . 6 . . . . . . 30 . 448 Redirected to Shielding 1012 | . . . . . . . . 133 . . . 10 . . . . . 13 . 90 . . . . . . 138 74 . . . 196 207 . . . 151 Ignored by Resistances 4891 | . . . . . . . . . . . . . . . . . . . . . . . . . . . . . . . . . . . 1127 976 2788 Regen/Repaired (Parts) 1229 | . . . . . 21 32 1 222 . . . . . . . . . 13 . 26 . . 4 . 44 . 107 45 . . . 94 141 137 342 . . Core Remaining (%) 69 | 100 . . . 30 93 . . . . . . 65 . . . . 98 . . . . . . 86 . . . . . . 67 91 . . 41 . 21 Volleys Fired 247 | 32 51 5 . 13 8 . . 3 . . . . . . . . . . . 5 . . . . . . . 6 . . . 7 28 . 15 23 51 Largest 4 | 1 2 1 . 2 1 . . 1 . . . . . . . . . . . 1 . . . . . . . 1 . . . 1 1 . 2 4 4 Hottest 400 | 20 100 20 . 50 30 . . 30 . . . . . . . . . . . 30 . . . . . . . 55 . . . 80 80 . 200 400 400 Shots Fired 446 | 32 74 5 . 15 8 . . 3 . . . . . . . . . . . 5 . . . . . . . 6 . . . 7 28 . 25 57 181 Gun 360 | 32 48 5 . 13 . . . . . . . . . . . . . . . . . . . . . . . . . . . . . . 25 57 180 Cannon 17 | . 10 . . . . . . . . . . . . . . . . . . . . . . . . . . 6 . . . . . . . . 1 Launcher 53 | . . . . 2 8 . . 3 . . . . . . . . . . . 5 . . . . . . . . . . . 7 28 . . . . Special 16 | . 16 . . . . . . . . . . . . . . . . . . . . . . . . . . . . . . . . . . . . Kinetic 114 | 32 58 5 . 13 . . . . . . . . . . . . . . . . . . . . . . . 6 . . . . . . . . . Thermal 18 | . 16 . . . . . . . . . . . . . . . . . . . . . . . . . . . . . . . . . 1 . 1 Explosive 53 | . . . . 2 8 . . 3 . . . . . . . . . . . 5 . . . . . . . . . . . 7 28 . . . . Electromagnetic . | . . . . . . . . . . . . . . . . . . . . . . . . . . . . . . . . . . . . . . Slashing 261 | . . . . . . . . . . . . . . . . . . . . . . . . . . . . . . . . . . . 24 57 180 Robot Hit Streak 17 | 6 11 2 . 3 3 . . 4 . . . . . . . . . . . 5 . . . . . . . . . . . 4 6 . 10 7 17 Robot Miss Streak 7 | 5 2 1 . 1 1 . . . . . . . . . . . . . . 1 . . . . . . . . . . . 1 . . 2 7 4 Penetration Max 1 | . . . . . . . . . . . . . . . . . . . . . . . . . . . . . . . . . . . . 1 1 Secondary Targets 2 | . . . . . . . . . . . . . . . . . . . . . . . . . . . . . . . . . . . . 1 1 Max Gunslinging Chain 1 | . . . . . . . . . . . . . . . . . . . . . . . . . . . . . . . . . . . . 1 1 Shots Hit Robots 370 | 16 39 5 . 13 8 1 . 36 . . . 2 12 . . . . 5 . 6 . . . . 22 . 4 10 . 2 1 15 20 . 9 22 122 Core Hits 212 | 4 17 2 . 5 20 . . 11 . . . 1 3 . . . . 3 . 12 . . . . 7 . 1 4 . 1 . 7 60 . 4 16 34 Critical Kills 1 | . . . . . 1 . . . . . . . . . . . . . . . . . . . . . . . . . . . . . . . . Critical Parts Destroyed 2 | . . . . . 1 . . 1 . . . . . . . . . . . . . . . . . . . . . . . . . . . . . Critical Strikes 12 | . . . . . 2 . . 3 . . . . . . . . . . . . . . . . 2 . 1 2 . . . . . . . 1 1 Smash 3 | . . . . . 2 . . 1 . . . . . . . . . . . . . . . . . . . . . . . . . . . . . Sever 9 | . . . . . . . . 2 . . . . . . . . . . . . . . . . 2 . 1 2 . . . . . . . 1 1 Melee Attacks 500 | . . 1 . 5 25 1 . 70 2 . . 2 27 2 1 . 2 23 1 48 3 4 . 4 63 . 47 29 . 9 11 40 40 8 31 1 . Impact 22 | . . . . . 16 1 . 5 . . . . . . . . . . . . . . . . . . . . . . . . . . . . . Slashing 450 | . . 1 . 5 9 . . 65 2 . . 2 26 2 1 . 2 23 1 48 3 4 . 4 52 . 45 28 . 9 10 38 36 8 26 . . Piercing 27 | . . . . . . . . . . . . . . . . . . . . . . . . . 11 . 2 1 . . 1 2 4 . 5 1 . Sneak Attacks 40 | . . . . 1 2 . . 5 . . . 1 6 . . . . 2 . 1 . . . . 4 . 2 2 . 2 . 6 4 . 2 . . Combat Hostiles 5 | . . . . . . . . 1 . . . . . . . . . . . . . . . . . . 2 . . . . . 1 . 1 . . Follow-up Attacks . | . . . . . . . . . . . . . . . . . . . . . . . . . . . . . . . . . . . . . . Damage Inflicted 26801 | 199 558 57 . 367 1295 93 . 2066 . . . 165 755 . . . . 300 . 608 . . . . 1075 . 109 438 . 209 . 872 5772 . 674 2244 8945 Guns 11924 | 199 413 32 . 78 . . . . . . . . . . . . . . . . . . . . . . . . . . . . . . 362 1895 8945 Cannons 121 | . 121 . . . . . . . . . . . . . . . . . . . . . . . . . . . . . . . . . . . . Explosions 7218 | . . . . 183 987 . . 331 . . . . . . . . . . . 475 . . . . . . . . . . . 215 4579 . 99 349 . Melee 7430 | . . 25 . 106 308 93 . 1735 . . . 165 755 . . . . 300 . 133 . . . . 1075 . 109 438 . 209 . 657 1193 . 129 . . Ramming 84 | . . . . . . . . . . . . . . . . . . . . . . . . . . . . . . . . . . . 84 . . Kinetic 843 | 199 534 32 . 78 . . . . . . . . . . . . . . . . . . . . . . . . . . . . . . . . . Thermal 24 | . 24 . . . . . . . . . . . . . . . . . . . . . . . . . . . . . . . . . . . . Explosive 7178 | . . . . 183 987 . . 331 . . . . . . . . . . . 475 . . . . . . . . . . . 215 4579 . 99 309 . Electromagnetic 40 | . . . . . . . . . . . . . . . . . . . . . . . . . . . . . . . . . . . . 40 . Impact 589 | . . . . . 308 93 . 188 . . . . . . . . . . . . . . . . . . . . . . . . . . . . . Slashing 17770 | . . 25 . 106 . . . 1547 . . . 165 755 . . . . 300 . 133 . . . . 802 . 109 438 . 209 . 657 1193 . 491 1895 8945 Piercing 273 | . . . . . . . . . . . . . . . . . . . . . . . . . 273 . . . . . . . . . . . . Highest Corruption 9 | . 1 1 1 1 . . . 6 6 6 6 6 . . . . . 1 9 9 4 4 4 . . 9 9 1 1 1 1 2 . . 2 . 2 Average Corruption 3 | . 1 1 1 1 . . . 3 6 6 6 6 . . . . . 1 7 6 4 4 4 . . 9 6 1 1 1 1 1 . . 1 . 1 Corruption Purged 18 | . . . . . . . . . . . . . . . . . . . . 5 . . . . . . 10 . . . . . . . 1 . 2 Corruption Blocked . | . . . . . . . . . . . . . . . . . . . . . . . . . . . . . . . . . . . . . . Effects 88 | . 7 3 . 2 . . . 7 3 5 1 5 . . . . . . 1 19 . 1 1 . . . 14 2 . 1 4 2 . . 3 . 7 Message Errors 22 | . 1 . . 2 . . . 2 2 2 1 . . . . . . . 1 3 . 1 1 . . . 3 1 . . . . . . . . 2 Matter Fused 23 | . . 1 . . . . . 4 . 1 . . . . . . . . . 9 . . . . . . 3 1 . . . . . . 1 . 3 Heat Flow Errors 11 | . . 1 . . . . . . 1 . . . . . . . . . . 4 . . . . . . 3 . . . 1 . . . 1 . . Energy Discharges 8 | . 1 . . . . . . 1 . . . 2 . . . . . . . . . . . . . . 1 . . . . 1 . . . . 2 Data Loss (minor) 18 | . 1 1 . . . . . . . 2 . 3 . . . . . . . 3 . . . . . . 4 . . 1 2 1 . . . . . Data Loss (major) 1 | . . . . . . . . . . . . . . . . . . . . . . . . . . . . . . . . . . . 1 . . Misfires 2 | . 2 . . . . . . . . . . . . . . . . . . . . . . . . . . . . . . . . . . . . Alerts 1 | . . . . . . . . . . . . . . . . . . . . . . . . . . . . . . . 1 . . . . . . Weapon Failures 2 | . 2 . . . . . . . . . . . . . . . . . . . . . . . . . . . . . . . . . . . . Overload Shots 1 | . . . . . . . . . . . . . . . . . . . . . . . . . . . . . . . . . . . . . 1 Overflow Damage 1836 | . . . . 37 139 43 . 358 . . . 23 245 . . . . 29 . 12 . . . . 186 . . 61 . 72 . 201 430 . . . . Projectiles . | . . . . . . . . . . . . . . . . . . . . . . . . . . . . . . . . . . . . . . Explosions 245 | . . . . 12 23 . . 29 . . . . . . . . . . . . . . . . . . . . . . . . 181 . . . . Melee 1591 | . . . . 25 116 43 . 329 . . . 23 245 . . . . 29 . 12 . . . . 186 . . 61 . 72 . 201 249 . . . . Knockbacks 5 | . 1 . . . 1 1 . 2 . . . . . . . . . . . . . . . . . . . . . . . . . . . . . Impact 4 | . . . . . 1 1 . 2 . . . . . . . . . . . . . . . . . . . . . . . . . . . . . Kinetic 1 | . 1 . . . . . . . . . . . . . . . . . . . . . . . . . . . . . . . . . . . . Secondary . | . . . . . . . . . . . . . . . . . . . . . . . . . . . . . . . . . . . . . . Self-Inflicted Damage 365 | . . . . 32 5 . . . . . . . . . . . . . . 189 . . . . . . . . . . . 16 25 . 48 50 . Shots 10 | . . . . 1 1 . . . . . . . . . . . . . . 4 . . . . . . . . . . . 1 1 . 1 1 . Rammed . | . . . . . . . . . . . . . . . . . . . . . . . . . . . . . . . . . . . . . . Targets Rammed 5 | . . . . . . . . . . . . . . . . . . . . . . . . . . . . . . . . . . . 4 . 1 Kicked 5 | . . . . . . . . . . . . . . . . . . . . . . . . . . . . . . . . . . . 4 . 1 Crushed . | . . . . . . . . . . . . . . . . . . . . . . . . . . . . . . . . . . . . . . Highest Temperature 380 | . 24 147 . 4 11 11 . 27 157 7 3 380 114 85 117 114 47 15 11 250 120 120 200 172 102 . 200 138 66 . 149 1 22 8 49 . 370 Average Temperature 37 | . 5 82 . 3 1 11 . 6 21 2 2 74 39 33 49 56 19 4 5 87 44 64 80 55 33 . 110 65 32 . 64 1 9 4 49 . 120 Received Heat Transfer 1256 | . 144 9 . 57 36 18 . 81 . 9 . 6 . 9 . . . 27 . 27 . . . . 78 . 18 27 . . . 47 63 36 175 45 344 Effects 1 | . . . . . . . . . . . . . . . . . . . . 1 . . . . . . . . . . . . . . . . . Energy Bleed 1 | . . . . . . . . . . . . . . . . . . . . 1 . . . . . . . . . . . . . . . . . Siege Activations . | . . . . . . . . . . . . . . . . . . . . . . . . . . . . . . . . . . . . . . Martial Activations . | . . . . . . . . . . . . . . . . . . . . . . . . . . . . . . . . . . . . . . Shielding Activations . | . . . . . . . . . . . . . . . . . . . . . . . . . . . . . . . . . . . . . . Robots Disrupted . | . . . . . . . . . . . . . . . . . . . . . . . . . . . . . . . . . . . . . . Combat Hostiles . | . . . . . . . . . . . . . . . . . . . . . . . . . . . . . . . . . . . . . . Robots Corrupted 5 | . . . . . 2 1 . 2 . . . . . . . . . . . . . . . . . . . . . . . . . . . . . Combat Hostiles 3 | . . . . . 1 . . 2 . . . . . . . . . . . . . . . . . . . . . . . . . . . . . Parts Fried 6 | . . . . . 3 1 . 2 . . . . . . . . . . . . . . . . . . . . . . . . . . . . . Impact Corruptions 10 | . . . . . 5 2 . 3 . . . . . . . . . . . . . . . . . . . . . . . . . . . . . Robots Melted . | . . . . . . . . . . . . . . . . . . . . . . . . . . . . . . . . . . . . . . Combat Hostiles . | . . . . . . . . . . . . . . . . . . . . . . . . . . . . . . . . . . . . . . Parts Melted 2 | . . . . . . . . . . . . . . . . . . . . . . . . . . . . . . . . . . . . 1 1 Heat Transferred 50 | . 50 . . . . . . . . . . . . . . . . . . . . . . . . . . . . . . . . . . . . Parts Sabotaged . | . . . . . . . . . . . . . . . . . . . . . . . . . . . . . . . . . . . . . . Parts Stolen . | . . . . . . . . . . . . . . . . . . . . . . . . . . . . . . . . . . . . . . Parts Stripped . | . . . . . . . . . . . . . . . . . . . . . . . . . . . . . . . . . . . . . . Power Chain Reactions . | . . . . . . . . . . . . . . . . . . . . . . . . . . . . . . . . . . . . . . Alert | -11 -10 -10 -10 -9 -8 -7 -7 -7 -7 -7 -7 -6 -6 -6 -6 -6 -5 -5 -5 -5 -5 -5 -5 -4 -4 -4 -4 -4 -4 -4 -4 -3 -2 -2 -2 -1 -1 ------- Run | Yrd Mat Min Exi Min Mat Fac Was Fac Low Low Dat Pro Fac Low Low Zio Pro Fac Was Fac Upp Upp War Pro Fac Was Fac Ext Cet Arc Hub Res Res Tes Sec Acc Com Maximum Alert Level 5 | . . . . . 1 1 . 4 . . . . 1 . . . . 2 . . . . . . 2 . 1 2 1 . 3 2 5 4 5 5 5 Low Security (%) 32 | 100 100 100 . 100 54 96 100 7 . . . . 50 . . . . 41 100 100 . . . . . 100 30 9 . 100 21 . . . . . . Level 1 21 | . . . . . 45 3 . . . . . . 49 . . . . 38 . . . . . . 85 . 69 17 100 . 3 73 26 . . . . Level 2 9 | . . . . . . . . 9 . . . . . . . . . 20 . . . . . . 14 . . 72 . . 16 26 23 . 15 . . Level 3 9 | . . . . . . . . 60 . . . . . . . . . . . . . . . . . . . . . . 58 . 3 . 52 . . Level 4 9 | . . . . . . . . 22 . . . . . . . . . . . . . . . . . . . . . . . . 16 100 . 47 6 Level 5 12 | . . . . . . . . . . . . . . . . . . . . . . . . . . . . . . . . . 22 . . . 89 High Security . | . . . . . . . . . . . . . . . . . . . . . . . . . . . . . . . . . 6 . . . 3 Max Security 3 | . . . . . . . . . . . . . . . . . . . . . . . . . . . . . . . . . . . 32 52 . Peak Influence 2466 | 10 148 45 . 165 391 202 67 1181 . . . . 270 . . . . 452 64 138 . . . . 496 122 294 693 352 160 858 494 2402 1363 2424 2368 2466 Initial 1515 | . . 30 . . 56 177 67 . . . . . . . . . . 450 44 . . . . . 300 122 85 142 352 128 52 411 277 1345 664 1454 1515 Average 558 | . 65 16 . 92 177 182 35 906 . . . . 159 . . . . 288 12 70 . . . . 355 122 219 502 344 147 609 384 1045 1266 1148 1731 1833 Influence Increases 16174 | 15 337 65 . 245 639 45 . 1878 . 90 . 5 479 . . . . 604 20 507 . . . . 877 . 553 1286 . 42 913 389 2537 69 1139 958 2482 Destroy 0b10 Robot/C 4280 | . 180 20 . 100 240 . . 580 . . . . . . . . . 20 . 80 . . . . 80 . 60 480 . . 180 60 820 . 60 140 1180 Destroy 0b10 Robot/NC 465 | 15 10 . . 5 30 5 . 55 . . . 5 25 . . . . 20 . 10 . . . . 20 . 5 15 . 10 30 30 90 . 5 15 65 Destroy Leader 838 | . 32 . . 20 40 2 . 130 . . . . . . . . . 16 . 10 . . . . 22 . 20 54 . . 56 32 178 . 12 42 172 Allied During Kill 1803 | . . . . . . . . 238 . . . . . . . . . 2 . . . . . . 23 . 8 338 . . 85 . 576 . . 17 516 Successful Hack 475 | . 27 . . . 56 38 . 117 . . . . 110 . . . . . . 13 . . . . 5 . 14 . . . . 15 18 18 30 . 14 Select Force Hacks 300 | . 60 . . . 30 . . . . . . . 30 . . . . 30 . 120 . . . . 30 . . . . . . . . . . . . Disable Machine 750 | . . . . . . . . 195 . . . . . . . . . . . 30 . . . . 15 . . . . 15 135 15 60 15 165 60 45 Anti-Garrison Action 400 | . . . . . . . . 200 . . . . . . . . . . . . . . . . . . 200 . . . . . . . . . . Destroy Structure 2678 | . 13 . . 15 63 . . 168 . . . . 14 . . . . 36 20 94 . . . . 82 . 96 84 . 2 352 162 645 21 147 189 475 Advance Influence 750 | . . . . . . . . . . . . . . . . . . 450 . . . . . . 300 . . . . . . . . . . . . Partial Spotted 915 | . . . . . 75 . . 90 . . . . 60 . . . . 30 . 105 . . . . 45 . 60 75 . 15 75 75 60 15 105 15 15 Lose Combat Pursuer 2520 | . 15 45 . 105 105 . . 105 . 90 . . 240 . . . . . . 45 . . . . 255 . 90 240 . . . . 90 . 615 480 . Influence Decreases 14282 | 15 259 138 5 100 393 244 192 726 457 213 572 5 303 96 56 24 . 478 146 402 70 35 . . 528 227 383 948 308 214 278 680 639 1279 736 1220 1913 Entered New Map 6812 | . . 48 5 . 89 214 125 . 427 133 572 . . 66 16 24 . . 82 . 40 8 . . . 227 37 150 278 194 98 374 217 1047 518 970 853 Time Decay 4382 | 15 239 80 . 90 206 30 67 366 30 80 . 5 293 30 40 . . 238 4 342 30 27 . . 278 . 286 238 10 20 110 286 262 222 198 90 170 Search Patrol Dispatched 200 | . . . . . . . . . . . . . . . . . . 100 . . . . . . 100 . . . . . . . . . . . . Lost Part 390 | . 20 10 . 10 . . . 50 . . . . . . . . . 20 . 60 . . . . 90 . . 30 . . 10 10 40 10 20 . 10 Lost Ally 2410 | . . . . . 10 . . 310 . . . . 10 . . . . 120 60 . . . . . 60 . 60 530 20 . 60 10 120 . . 160 880 Purge Threat 88 | . . . . . 88 . . . . . . . . . . . . . . . . . . . . . . . . . . . . . . . . Squads Dispatched 136 | . 3 1 . . 5 1 . 13 . . . . 10 . . . . 4 . 16 . . . . 10 . 7 4 . . 3 10 10 2 18 13 6 Investigation 51 | . 2 1 . . 4 1 . 6 . . . . 7 . . . . 2 . 11 . . . . 5 . 5 1 . . 1 2 2 . . . 1 Extermination 24 | . . . . . . . . 3 . . . . 1 . . . . 1 . 3 . . . . 3 . 2 . . . 1 3 2 1 2 . 2 Reinforcement 23 | . 1 . . . 1 . . 2 . . . . 2 . . . . 1 . 2 . . . . 2 . . . . . 1 5 3 . 2 . 1 Assault 36 | . . . . . . . . 2 . . . . . . . . . . . . . . . . . . . 3 . . . . 3 1 13 12 2 Garrison . | . . . . . . . . . . . . . . . . . . . . . . . . . . . . . . . . . . . . . . Intercept 2 | . . . . . . . . . . . . . . . . . . . . . . . . . . . . . . . . . . . 1 1 . Searches Triggered 2 | . . . . . . . . . . . . . . . . . . 1 . . . . . . 1 . . . . . . . . . . . . Unchained Authorized 3 | . . . . . . . . . . . . . . . . . . . . . . . . . . . 1 1 . . 1 . . . . . . Data Miner Redirects 7 | . . . . . . . . . . . . . . . . . . . . 2 . . . . 3 . . 1 . . . . 1 . . . . Construction Impeded 2 | . . . . . . . . 1 . . . . . . . . . . . . . . . . . . . . . . . . 1 . . . . Haulers Reinforced 2 | . . . . . . . . 1 . . . . . . . . . . . . . . . . 1 . . . . . . . . . . . . Active Scanning Responses . | . . . . . . . . . . . . . . . . . . . . . . . . . . . . . . . . . . . . . . Cargo Convoy Interrupts . | . . . . . . . . . . . . . . . . . . . . . . . . . . . . . . . . . . . . . . Stealth | -11 -10 -10 -10 -9 -8 -7 -7 -7 -7 -7 -7 -6 -6 -6 -6 -6 -5 -5 -5 -5 -5 -5 -5 -4 -4 -4 -4 -4 -4 -4 -4 -3 -2 -2 -2 -1 -1 --------- Run | Yrd Mat Min Exi Min Mat Fac Was Fac Low Low Dat Pro Fac Low Low Zio Pro Fac Was Fac Upp Upp War Pro Fac Was Fac Ext Cet Arc Hub Res Res Tes Sec Acc Com Distress Signals 64 | . 3 . . . 1 1 . 1 . . . . 3 . . . . 1 . 2 . . . . 1 . 6 4 1 . 3 4 3 1 3 3 23 Communications Jammed . | . . . . . . . . . . . . . . . . . . . . . . . . . . . . . . . . . . . . . . Distress Signals . | . . . . . . . . . . . . . . . . . . . . . . . . . . . . . . . . . . . . . . Times Spotted 660 | . 20 8 . 15 25 3 . 34 . 6 . 11 17 10 . . . 17 6 27 7 . . 4 26 6 38 34 5 1 24 53 45 9 142 41 26 Peak Tracking Total 45 | . 8 3 . 7 6 3 . 5 . 5 . 11 8 7 . . . 3 5 8 7 . . 4 7 6 11 18 5 2 6 18 8 9 45 29 9 Tactical Retreats 98 | . 1 1 . 2 4 . . 6 . 2 . . 5 . . . . 6 . 8 . . . . 12 . 11 4 . 1 3 10 5 . 11 6 . ECM-based Alert Blocks 107 | . . . . . . . . . . . . . . . . . . 11 . 13 . . . . 5 . 22 . . 1 6 37 5 . 7 . . Traps | -11 -10 -10 -10 -9 -8 -7 -7 -7 -7 -7 -7 -6 -6 -6 -6 -6 -5 -5 -5 -5 -5 -5 -5 -4 -4 -4 -4 -4 -4 -4 -4 -3 -2 -2 -2 -1 -1 ------- Run | Yrd Mat Min Exi Min Mat Fac Was Fac Low Low Dat Pro Fac Low Low Zio Pro Fac Was Fac Upp Upp War Pro Fac Was Fac Ext Cet Arc Hub Res Res Tes Sec Acc Com Traps Triggered 25 | . 1 . . . . 2 . 3 . . . 1 . . . . . 1 . . . . . . 1 . 1 2 . . 1 3 2 1 4 2 . Indirectly . | . . . . . . . . . . . . . . . . . . . . . . . . . . . . . . . . . . . . . . Trap Hack Attempts 19 | . . . . . . . . 19 . . . . . . . . . . . . . . . . . . . . . . . . . . . . . Triggered . | . . . . . . . . . . . . . . . . . . . . . . . . . . . . . . . . . . . . . . Disarmed . | . . . . . . . . . . . . . . . . . . . . . . . . . . . . . . . . . . . . . . Reprogrammed . | . . . . . . . . . . . . . . . . . . . . . . . . . . . . . . . . . . . . . . Reused 1 | . . . . . . . . . . 1 . . . . . . . . . . . . . . . . . . . . . . . . . . . Traps Extracted 2 | . . . . . . . . . . 1 . 1 . . . . . . . . . . . . . . . . . . . . . . . . . Installed 1 | . . . . . . . . . . 1 . . . . . . . . . . . . . . . . . . . . . . . . . . . Triggered 1 | . . . . . . . . . . 1 . . . . . . . . . . . . . . . . . . . . . . . . . . . Most Traps Carried 8 | . . . . . . . . . . 1 . 8 8 8 8 8 8 8 8 8 8 8 8 8 8 8 8 . . . . . . . . . . Machines | -11 -10 -10 -10 -9 -8 -7 -7 -7 -7 -7 -7 -6 -6 -6 -6 -6 -5 -5 -5 -5 -5 -5 -5 -4 -4 -4 -4 -4 -4 -4 -4 -3 -2 -2 -2 -1 -1 ---------- Run | Yrd Mat Min Exi Min Mat Fac Was Fac Low Low Dat Pro Fac Low Low Zio Pro Fac Was Fac Upp Upp War Pro Fac Was Fac Ext Cet Arc Hub Res Res Tes Sec Acc Com Machines Disabled 53 | . . . . . . . . 13 . . . . . . 1 . . . . 2 1 . . . 1 . . 1 . 1 9 1 4 1 11 4 3 Max in Single Turn 2 | . . . . . . . . 1 . . . . . . 1 . . . . 2 1 . . . 1 . . 1 . 1 1 1 1 1 1 1 1 Garrison Access 14 | . . . . . 1 . . 3 . . . . 1 . . . . 1 . 2 . . . . 1 . 3 . . . . 1 1 . . . . Network Hub 3 | . . . . . . . . . . . . . . . . . . . . . . . . . . . . . . . 3 . . . . . . Machines Repaired . | . . . . . . . . . . . . . . . . . . . . . . . . . . . . . . . . . . . . . . Machines Dismantled 3 | . . . . . . . . . . . . . . . . . . . . . . . . . . . . . . . 3 . . . . . . Machines Sabotaged . | . . . . . . . . . . . . . . . . . . . . . . . . . . . . . . . . . . . . . . Overloaded Fab Kills . | . . . . . . . . . . . . . . . . . . . . . . . . . . . . . . . . . . . . . . Hacking | -11 -10 -10 -10 -9 -8 -7 -7 -7 -7 -7 -7 -6 -6 -6 -6 -6 -5 -5 -5 -5 -5 -5 -5 -4 -4 -4 -4 -4 -4 -4 -4 -3 -2 -2 -2 -1 -1 --------- Run | Yrd Mat Min Exi Min Mat Fac Was Fac Low Low Dat Pro Fac Low Low Zio Pro Fac Was Fac Upp Upp War Pro Fac Was Fac Ext Cet Arc Hub Res Res Tes Sec Acc Com Machines Accessed 130 | . 10 1 1 . 13 3 . 21 1 1 4 1 18 . 1 . . 5 . 13 . . 2 . 8 . 11 1 . . . 3 3 2 4 . 3 Terminals 45 | . 7 1 . . 9 1 . 10 . . . 1 10 . . . . . . . . . . . . . . . . . . . . . 3 . 3 Fabricators 13 | . . . . . . . . 1 . . . . 3 . . . . 1 . 1 . . . . 3 . 2 . . . . 1 1 . . . . Repair Stations 21 | . 1 . . . 1 1 . 2 . . . . 1 . . . . 1 . 4 . . . . 2 . 3 1 . . . 1 1 1 1 . . Recycling Units 12 | . 2 . . . 1 1 . 1 . . . . 1 . . . . 1 . 4 . . . . 1 . . . . . . . . . . . . Scanalyzers 12 | . . . . . 1 . . 3 . . . . 2 . . . . 1 . 2 . . . . . . 2 . . . . . . 1 . . . Garrison Access 17 | . . . . . 1 . . 4 . . . . 1 . . . . 1 . 2 . . . . 2 . 4 . . . . 1 1 . . . . Total Hacks 400 | . 29 2 7 . 54 14 . 56 1 1 25 1 51 . 1 . . 15 . 24 . . 5 . 24 . 31 1 . . . 8 13 13 9 . 15 Successful 253 | . 17 . 7 . 36 5 . 24 1 1 25 1 35 . 1 . . 10 . 16 . . 5 . 14 . 24 1 . . . 8 7 8 4 . 3 Failed 145 | . 12 2 . . 17 9 . 32 . . . . 16 . . . . 5 . 8 . . . . 10 . 7 . . . . . 6 4 5 . 12 Catastrophic 27 | . . 2 . . 5 2 . 10 . . . . . . . . . 1 . 1 . . . . 1 . 2 . . . . . . . . . 3 Database Lockouts 2 | . . . . . 1 . . . . . . . . . . . . . . . . . . . . . . . . . . . . 1 . . . Manual 400 | . 25 2 . . 33 8 . 24 . . . . 25 . . . . 30 . 40 . . 1 . 16 . 33 21 . . 27 32 16 25 21 2 19 Terminals 151 | . 25 2 . . 40 6 . 26 . . . 1 30 . . . . . . . . . . . . . . . . . . . . . 6 . 15 Fabricators 40 | . . . . . . . . 1 . . . . 6 . . . . 3 . 2 . . . . 14 . 4 . . . . 3 7 . . . . Repair Stations 77 | . 1 . . . 5 7 . 12 . . . . 2 . . . . 5 . 8 . . . . 5 . 12 1 . . . 4 5 7 3 . . Recycling Units 16 | . 3 . . . 1 1 . 1 . . . . 1 . . . . 1 . 6 . . . . 2 . . . . . . . . . . . . Scanalyzers 53 | . . . . . 7 . . 10 . . . . 10 . . . . 4 . 6 . . . . . . 10 . . . . . . 6 . . . Garrison Access 23 | . . . . . 1 . . 6 . . . . 2 . . . . 2 . 2 . . . . 3 . 5 . . . . 1 1 . . . . Terminal Hacks 72 | . 5 . 7 . 9 . . 3 1 1 25 1 8 . 1 . . . . . . . 5 . . . . . . . . . . . 3 . 3 Record 19 | . . . 7 . . . . . . . 11 1 . . . . . . . . . . . . . . . . . . . . . . . . . Part Schematic 11 | . . . . . . . . . . . 8 . 3 . . . . . . . . . . . . . . . . . . . . . . . . Robot Schematic 4 | . . . . . . . . 1 . . 3 . . . . . . . . . . . . . . . . . . . . . . . . . . Robot Analysis 3 | . 1 . . . . . . 1 . . . . 1 . . . . . . . . . . . . . . . . . . . . . . . . Prototype ID Bank 13 | . 2 . . . 2 . . . . . 3 . 2 . . . . . . . . . 4 . . . . . . . . . . . . . . Open Door 8 | . . . . . . . . . 1 1 . . . . 1 . . . . . . . 1 . . . . . . . . . . . 3 . 1 Branch Access Points 1 | . . . . . . . . . . . . . 1 . . . . . . . . . . . . . . . . . . . . . . . . Emergency Access Points 1 | . . . . . 1 . . . . . . . . . . . . . . . . . . . . . . . . . . . . . . . . Terminal Index 3 | . 1 . . . 1 . . 1 . . . . . . . . . . . . . . . . . . . . . . . . . . . . . Unreport Threat 1 | . . . . . 1 . . . . . . . . . . . . . . . . . . . . . . . . . . . . . . . . Locate Traps 1 | . 1 . . . . . . . . . . . . . . . . . . . . . . . . . . . . . . . . . . . . Zone Layout 5 | . . . . . 4 . . . . . . . 1 . . . . . . . . . . . . . . . . . . . . . . . . Disengage Seal 2 | . . . . . . . . . . . . . . . . . . . . . . . . . . . . . . . . . . . . . 2 Fabricator Hacks 21 | . . . . . . . . 1 . . . . 3 . . . . 2 . . . . . . 8 . 3 . . . . 2 2 . . . . Network Status 3 | . . . . . . . . 1 . . . . 2 . . . . . . . . . . . . . . . . . . . . . . . . Load Schematic 11 | . . . . . . . . . . . . . 1 . . . . 1 . . . . . . 5 . 2 . . . . 1 1 . . . . Build 7 | . . . . . . . . . . . . . . . . . . 1 . . . . . . 3 . 1 . . . . 1 1 . . . . Repair Station Hacks 38 | . 1 . . . 3 1 . 6 . . . . 1 . . . . 2 . 3 . . . . 1 . 6 . . . . 4 3 6 1 . . Scan Component 16 | . . . . . 2 . . 3 . . . . . . . . . 1 . 1 . . . . . . 3 . . . . 2 1 3 . . . Repair 14 | . . . . . 1 . . 3 . . . . . . . . . 1 . 1 . . . . . . 2 . . . . 2 1 3 . . . Refit 8 | . 1 . . . . 1 . . . . . . 1 . . . . . . 1 . . . . 1 . 1 . . . . . 1 . 1 . . Recycling Unit Hacks . | . . . . . . . . . . . . . . . . . . . . . . . . . . . . . . . . . . . . . . Scanalyzer 34 | . . . . . 4 . . 3 . . . . 9 . . . . 3 . 4 . . . . . . 9 . . . . . . 2 . . . Insert Component 12 | . . . . . 2 . . 2 . . . . 3 . . . . 1 . 1 . . . . . . 3 . . . . . . . . . . Analyze 9 | . . . . . 1 . . . . . . . 4 . . . . . . 2 . . . . . . 2 . . . . . . . . . . Retrieve Study 13 | . . . . . 1 . . 1 . . . . 2 . . . . 2 . 1 . . . . . . 4 . . . . . . 2 . . . Garrison Access Hacks 12 | . . . . . 1 . . 2 . . . . 1 . . . . 1 . 2 . . . . 1 . 2 . . . . 1 1 . . . . Seal Access 12 | . . . . . 1 . . 2 . . . . 1 . . . . 1 . 2 . . . . 1 . 2 . . . . 1 1 . . . . Unauthorized Hacks 76 | . 11 . . . 19 4 . 9 . . . . 13 . . . . 2 . 7 . . . . 4 . 4 1 . . . 1 1 . . . . Terminals 44 | . 9 . . . 17 2 . 7 . . . . 9 . . . . . . . . . . . . . . . . . . . . . . . . Track 5 | . . . . . 4 . . . . . . . 1 . . . . . . . . . . . . . . . . . . . . . . . . Assimilate 5 | . . . . . 3 . . 1 . . . . 1 . . . . . . . . . . . . . . . . . . . . . . . . Botnet 12 | . 4 . . . 4 1 . 1 . . . . 2 . . . . . . . . . . . . . . . . . . . . . . . . Skim 22 | . 5 . . . 6 1 . 5 . . . . 5 . . . . . . . . . . . . . . . . . . . . . . . . Fabricators 9 | . . . . . . . . . . . . . 3 . . . . . . 1 . . . . 2 . 1 . . . . 1 1 . . . . Prioritize 3 | . . . . . . . . . . . . . . . . . . . . . . . . . 1 . . . . . . 1 1 . . . . Recompile 6 | . . . . . . . . . . . . . 3 . . . . . . 1 . . . . 1 . 1 . . . . . . . . . . Repair Stations 9 | . . . . . 1 1 . . . . . . . . . . . 1 . 2 . . . . 1 . 2 1 . . . . . . . . . Mechanics 1 | . . . . . . . . . . . . . . . . . . 1 . . . . . . . . . . . . . . . . . . . Patch 8 | . . . . . 1 1 . . . . . . . . . . . . . 2 . . . . 1 . 2 1 . . . . . . . . . Recycling Units 12 | . 2 . . . 1 1 . 1 . . . . 1 . . . . 1 . 4 . . . . 1 . . . . . . . . . . . . Recyclers 2 | . . . . . . 1 . 1 . . . . . . . . . . . . . . . . . . . . . . . . . . . . . Tunnel 10 | . 2 . . . 1 . . . . . . . 1 . . . . 1 . 4 . . . . 1 . . . . . . . . . . . . Scanalyzers . | . . . . . . . . . . . . . . . . . . . . . . . . . . . . . . . . . . . . . . Garrison Access 2 | . . . . . . . . 1 . . . . . . . . . . . . . . . . . . 1 . . . . . . . . . . Jam 2 | . . . . . . . . 1 . . . . . . . . . . . . . . . . . . 1 . . . . . . . . . . Data Cores Recovered 3 | . . . . . 1 . . 1 . . . . 1 . . . . . . . . . . . . . . . . . . . . . . . . Used 1 | . . . . . . . . . . . . . 1 . . . . . . . . . . . . . . . . . . . . . . . . Hacking Detections 76 | . 8 1 . . 8 2 . 17 . . . . 15 . . . . 4 . 5 . . . . 4 . 5 . . . . 1 2 2 . . 2 Full Trace Events 20 | . 1 1 . . 2 . . 4 . . . . 3 . . . . 1 . 2 . . . . 2 . 1 . . . . 1 1 . . . 1 Feedback Events 2 | . . . . . . . . 1 . . . . . . . . . . . 1 . . . . . . . . . . . . . . . . . Corruption 1 | . . . . . . . . 1 . . . . . . . . . . . . . . . . . . . . . . . . . . . . . Hackware Fried 1 | . . . . . . . . . . . . . . . . . . . . 1 . . . . . . . . . . . . . . . . . Feedback Blocked 1 | . . . . . . . . 1 . . . . . . . . . . . . . . . . . . . . . . . . . . . . . Robot Schematics Acquired 20 | . . . . . . . . 1 . . 3 . . . . . . . . 7 . . . . 5 . . . . . . 4 . . . . . Robots Built . | . . . . . . . . . . . . . . . . . . . . . . . . . . . . . . . . . . . . . . Authchips . | . . . . . . . . . . . . . . . . . . . . . . . . . . . . . . . . . . . . . . Time 29 | . . . . . . . . . . . . . . . . . . . . . . . . . . . . . . . . . 29 . . . . Total Robot Build Rating . | . . . . . . . . . . . . . . . . . . . . . . . . . . . . . . . . . . . . . . Part Schematics Acquired 196 | . . . . . 1 . . . . . 8 . 6 . . . . 25 . 1 . . . . . . 17 20 . . 14 14 . 29 37 . 24 Parts Built 8 | . . . . . . . . . . . . . . . . . . 1 . . . . . . 4 . 2 . . . . 1 . . . . . Authchips 5 | . . . . . . . . . . . . . . . . . . 1 . . . . . . 3 . 1 . . . . . . . . . . Time 196 | . . . . . . . . . . . . . . . . . . 68 . . . . . . 68 . 35 . . . . 25 . . . . . Total Part Build Rating 46 | . . . . . . . . . . . . . . . . . . 8 . . . . . . 21 . 12 . . . . 5 . . . . . Part Studies Acquired 13 | . . . . . 1 . . 1 . . . . 2 . . . . 2 . 1 . . . . . . 4 . . . . . . 2 . . . Parts Repaired 14 | . . . . . 1 . . 3 . . . . . . . . . 1 . 1 . . . . . . 2 . . . . 2 1 3 . . . Time 744 | . . . . . 136 . . 57 . . . . . . . . . 32 . 26 . . . . . . 76 . . . . 130 40 247 . . . Parts Recycled . | . . . . . . . . . . . . . . . . . . . . . . . . . . . . . . . . . . . . . . Recycled Matter . | . . . . . . . . . . . . . . . . . . . . . . . . . . . . . . . . . . . . . . Retrieved Matter . | . . . . . . . . . . . . . . . . . . . . . . . . . . . . . . . . . . . . . . Retrieved Components . | . . . . . . . . . . . . . . . . . . . . . . . . . . . . . . . . . . . . . . Parts Scanalyzed 9 | . . . . . 1 . . 1 . . . . 3 . . . . 1 . 1 . . . . . . 2 . . . . . . . . . . Part Schematics Acquired 7 | . . . . . 1 . . . . . . . 3 . . . . . . 1 . . . . . . 2 . . . . . . . . . . Parts Damaged 1 | . . . . . 1 . . . . . . . . . . . . . . . . . . . . . . . . . . . . . . . . Bothacking | -11 -10 -10 -10 -9 -8 -7 -7 -7 -7 -7 -7 -6 -6 -6 -6 -6 -5 -5 -5 -5 -5 -5 -5 -4 -4 -4 -4 -4 -4 -4 -4 -3 -2 -2 -2 -1 -1 ------------ Run | Yrd Mat Min Exi Min Mat Fac Was Fac Low Low Dat Pro Fac Low Low Zio Pro Fac Was Fac Upp Upp War Pro Fac Was Fac Ext Cet Arc Hub Res Res Tes Sec Acc Com Used RIF Installer . | . . . . . . . . . . . . . . . . . . . . . . . . . . . . . . . . . . . . . . Robots Hacked . | . . . . . . . . . . . . . . . . . . . . . . . . . . . . . . . . . . . . . . Non-combat . | . . . . . . . . . . . . . . . . . . . . . . . . . . . . . . . . . . . . . . Combat . | . . . . . . . . . . . . . . . . . . . . . . . . . . . . . . . . . . . . . . Robot Hacks Applied . | . . . . . . . . . . . . . . . . . . . . . . . . . . . . . . . . . . . . . . Relay Couplers Released . | . . . . . . . . . . . . . . . . . . . . . . . . . . . . . . . . . . . . . . Fabnet Peak Effective % . | . . . . . . . . . . . . . . . . . . . . . . . . . . . . . . . . . . . . . . Robots Rewired 20 | . . . . . . . . . . . . . . . . . . . . . . . 5 . . . . 15 . . . . . . . . . Allies Hacked 8 | . . . . . . . . . . . . . . . . . . 2 . . . . . . . . . 3 . . . . . . . . 3 Hacks Repelled . | . . . . . . . . . . . . . . . . . . . . . . . . . . . . . . . . . . . . . . Allies | -11 -10 -10 -10 -9 -8 -7 -7 -7 -7 -7 -7 -6 -6 -6 -6 -6 -5 -5 -5 -5 -5 -5 -5 -4 -4 -4 -4 -4 -4 -4 -4 -3 -2 -2 -2 -1 -1 -------- Run | Yrd Mat Min Exi Min Mat Fac Was Fac Low Low Dat Pro Fac Low Low Zio Pro Fac Was Fac Upp Upp War Pro Fac Was Fac Ext Cet Arc Hub Res Res Tes Sec Acc Com Total Allies 248 | . . . . . 2 . 20 1 . . . . 1 . . 4 . 2 19 . . . 5 . 3 . 6 33 . . 5 1 8 . . 35 103 Largest Group 30 | . . . . . 1 . 20 20 . . . . 1 . . 4 4 4 19 . . . 5 . 3 . 3 20 1 . 5 1 5 . . 7 30 Highest-Rated Group 3135 | . . . . . 10 . 528 528 . . . . 10 . . 157 157 170 702 . . . 238 . 288 . 288 934 27 . 398 28 589 . . 101 3135 Highest-Rated Ally 269 | . . . . . 10 . 35 35 . . . . 10 . . 42 42 85 50 . . . 64 . 96 . 96 159 27 . 138 28 122 . . 15 269 Zionite Dispatches 16 | . . . . . . . . . . . . . . . . . . 1 . . . . . . 1 . 2 4 . . 4 1 3 . . . . Heavy 3 | . . . . . . . . . . . . . . . . . . 1 . . . . . . . . . . . . 1 . 1 . . . . Light 5 | . . . . . . . . . . . . . . . . . . . . . . . . . 1 . 2 1 . . . . 1 . . . . Fire 1 | . . . . . . . . . . . . . . . . . . . . . . . . . . . . 1 . . . . . . . . . Hacker 1 | . . . . . . . . . . . . . . . . . . . . . . . . . . . . . . . . . 1 . . . . Hero 1 | . . . . . . . . . . . . . . . . . . . . . . . . . . . . . . . 1 . . . . . . Kinetic Resupply 1 | . . . . . . . . . . . . . . . . . . . . . . . . . . . . 1 . . . . . . . . . Explosive Resupply 1 | . . . . . . . . . . . . . . . . . . . . . . . . . . . . . . . . 1 . . . . . Hacking Resupply 3 | . . . . . . . . . . . . . . . . . . . . . . . . . . . . 1 . . 2 . . . . . . Total Orders 5 | . . . . . . . . . . . . . . . . . . . . . . . . . . . . 2 1 . 2 . . . . . . ROAM 1 | . . . . . . . . . . . . . . . . . . . . . . . . . . . . . 1 . . . . . . . . DROP 4 | . . . . . . . . . . . . . . . . . . . . . . . . . . . . 2 . . 2 . . . . . . Ally Attacks 929 | . . . . . . . . 137 . . . . . . . . . 6 63 . . . . . 29 . 14 152 . . 29 . 131 . . 25 343 Total Damage 52383 | . . . . . . . . 3639 . . . . . . . . . 394 1569 . . . . . 1356 . 680 4639 . . 3027 . 6612 . . 450 30017 Kills 186 | . . . . . . . . 30 . . . . . . . . . 1 3 . . . . . 4 . 1 24 . . 15 . 34 . . 1 73 Allies Corrupted 15 | . . . . . . . . . . . . . . . . . . 2 . . . . . . . . 2 4 . . 1 . . . . . 6 Allies Melted 2 | . . . . . . . . . . . . . . . . . . . . . . . . . . . . . . . . . . . . . 2 Intel | -11 -10 -10 -10 -9 -8 -7 -7 -7 -7 -7 -7 -6 -6 -6 -6 -6 -5 -5 -5 -5 -5 -5 -5 -4 -4 -4 -4 -4 -4 -4 -4 -3 -2 -2 -2 -1 -1 ------- Run | Yrd Mat Min Exi Min Mat Fac Was Fac Low Low Dat Pro Fac Low Low Zio Pro Fac Was Fac Upp Upp War Pro Fac Was Fac Ext Cet Arc Hub Res Res Tes Sec Acc Com Active Infowar (turns) 9263 | 9 301 . . . . . . 634 75 165 18 165 710 77 93 429 219 510 62 769 77 96 267 159 611 18 626 501 20 59 233 637 612 470 560 . 81 Optics 338 | . . . . . . . . . . . . . . . . . . . . 63 77 96 102 . . . . . . . . . . . . . . Sensors 7907 | . 2 . . . . . . 634 75 165 18 165 710 77 93 429 219 510 62 769 77 96 267 159 545 18 626 21 . . 162 637 612 470 289 . . Terrain 177 | . . . . . . . . . . . . . . . . . . . . . . . . . . . . . . . . 177 . . . . . Structural 6606 | . . . . . . . . . . . . . 535 77 93 421 219 353 . 692 77 96 267 159 608 18 626 501 20 59 223 426 612 470 54 . . Seismic 308 | 9 299 . . . . . . . . . . . . . . . . . . . . . . . . . . . . . . . . . . . . Machine Analysis 81 | . . . . . . . . . . . . . . . . . . . . . . . . . . . . . . . . . . . . . 81 Cloaking 811 | . . . . . . . . . . . . . . . . . . . . . . . . . . . . . . . . . . 251 560 . . ECM 4059 | . . . . . . . . . . . . . . . . . . 508 62 710 77 96 267 159 167 . 367 90 . 30 233 632 357 76 228 . . Robot Analysis Total 3 | . 1 . . . . . . 1 . . . . 1 . . . . . . . . . . . . . . . . . . . . . . . . Derelict Logs Recovered 15 | . . 1 . 2 . . . . 1 1 . 2 . . 1 2 1 . . . . 2 . 2 . . . . . . . . . . . . . Drone Launches . | . . . . . . . . . . . . . . . . . . . . . . . . . . . . . . . . . . . . . . Drone Recoveries . | . . . . . . . . . . . . . . . . . . . . . . . . . . . . . . . . . . . . . . Zionite Intel Received 58 | . . . . . . . . . . . . . . . . . . 6 . 9 . . . . 2 . 7 3 . . 4 7 2 7 6 . 5 Main Access 1 | . . . . . . . . . . . . . . . . . . 1 . . . . . . . . . . . . . . . . . . . Branch Access 3 | . . . . . . . . . . . . . . . . . . . . 1 . . . . . . . . . . . . . 1 . . 1 Emergency Access 3 | . . . . . . . . . . . . . . . . . . . . . . . . . . . 1 1 . . . 1 . . . . . Guard Positions 2 | . . . . . . . . . . . . . . . . . . 1 . . . . . . . . . . . . 1 . . . . . . Component Stockpiles 5 | . . . . . . . . . . . . . . . . . . 1 . . . . . . . . . . . . . 1 . 1 1 . 1 Prototype Stockpiles 3 | . . . . . . . . . . . . . . . . . . . . 1 . . . . . . 1 . . . . . . 1 . . . Component Schematics 9 | . . . . . . . . . . . . . . . . . . 1 . . . . . . . . 1 1 . . 1 1 . 2 1 . 1 Prototype Schematics 5 | . . . . . . . . . . . . . . . . . . 1 . . . . . . . . . 1 . . . . . . 2 . 1 Unaware Schematics 4 | . . . . . . . . . . . . . . . . . . . . 2 . . . . 1 . . . . . . 1 . . . . . Unaware Analyses 6 | . . . . . . . . . . . . . . . . . . . . 2 . . . . . . . . . . 1 1 . 1 1 . . Trap Installations 5 | . . . . . . . . . . . . . . . . . . . . 1 . . . . . . 1 . . . . . 1 1 . . 1 Active Terminals 4 | . . . . . . . . . . . . . . . . . . 1 . 1 . . . . . . 1 . . . . . 1 . . . . Active Garrisons 4 | . . . . . . . . . . . . . . . . . . . . . . . . . 1 . 1 . . . 1 1 . . . . . Depthwide Sectors/0 2 | . . . . . . . . . . . . . . . . . . . . 1 . . . . . . . . . . . . . . 1 . . Depthwide Sectors/-1 2 | . . . . . . . . . . . . . . . . . . . . . . . . . . . 1 . . . . 1 . . . . . Exploration | -11 -10 -10 -10 -9 -8 -7 -7 -7 -7 -7 -7 -6 -6 -6 -6 -6 -5 -5 -5 -5 -5 -5 -5 -4 -4 -4 -4 -4 -4 -4 -4 -3 -2 -2 -2 -1 -1 ------------- Run | Yrd Mat Min Exi Min Mat Fac Was Fac Low Low Dat Pro Fac Low Low Zio Pro Fac Was Fac Upp Upp War Pro Fac Was Fac Ext Cet Arc Hub Res Res Tes Sec Acc Com Turns Passed 13046 | 89 805 259 46 183 426 63 144 913 75 165 18 165 710 77 93 429 219 510 62 769 77 96 267 159 614 18 626 501 20 59 233 637 612 470 610 385 1442 Spaces Moved 27711 | 40 726 580 125 327 1054 204 237 1990 279 449 79 307 1143 282 343 821 269 1271 174 2139 233 323 588 522 1280 82 1880 701 82 42 628 1420 1227 601 1660 955 2648 Core 48 | 40 8 . . . . . . . . . . . . . . . . . . . . . . . . . . . . . . . . . . . . Treads . | . . . . . . . . . . . . . . . . . . . . . . . . . . . . . . . . . . . . . . Legs 3980 | . . . . . . . . . . . . . . . . . . . . . . . . . . . . . . . . . . . 621 711 2648 Wheels . | . . . . . . . . . . . . . . . . . . . . . . . . . . . . . . . . . . . . . . Hover . | . . . . . . . . . . . . . . . . . . . . . . . . . . . . . . . . . . . . . . Flight 23249 | . 718 580 125 327 1054 204 237 1990 279 449 79 307 1143 282 343 821 269 1271 174 2139 233 323 588 522 1280 82 1880 701 82 42 628 1420 1227 601 849 . . Fastest Speed 7 | 50 37 37 37 37 28 28 28 23 23 23 23 23 23 23 23 23 23 23 23 22 20 23 23 23 19 20 20 11 11 20 20 19 12 7 17 30 30 Average Speed 24 | 50 38 37 37 37 28 28 28 23 23 23 23 23 23 23 23 23 23 23 23 22 22 23 23 23 22 20 20 19 17 20 20 19 20 19 22 30 30 Slowest Speed 120 | 50 120 120 37 117 28 28 28 28 23 23 23 26 26 23 23 23 23 23 23 26 23 23 23 23 24 20 20 20 20 20 20 21 91 89 30 30 90 Overloaded Moves 62 | . . . . . . . . . . . . . . . . . . . . . 6 . . . . . . 18 21 . . . 7 10 . . . Propulsion Burnouts . | . . . . . . . . . . . . . . . . . . . . . . . . . . . . . . . . . . . . . . Robots Hopped 187 | . 10 6 . 8 13 . . 15 . . . 3 6 5 . . . 5 6 18 2 . 2 2 12 3 16 9 2 1 2 26 9 5 1 . . Potential Cave-ins 6 | . . . . . . . . . . . . . . . . . . . . . . . . . . . . . . . . . . . 6 . . Cave-ins Triggered . | . . . . . . . . . . . . . . . . . . . . . . . . . . . . . . . . . . . . . . Teleports 1 | . . . . . . . . . . . . . . . . . . . . . . . . . . . . . . . . . . . 1 . . Microwarps 31 | . . . . . . . . . . . . . . . . . . . . . . . . . . . . . . . . . . . 16 15 . Exploration Rate (%) 61 | 5 99 95 48 56 71 7 86 62 48 59 69 48 46 61 55 87 50 46 91 62 44 60 90 77 43 83 58 79 47 59 69 50 40 69 93 40 75 Regions Visited 37 Branch Regions 22 Pre-discovered Areas 39 | . 3 . 1 2 3 . . 2 1 . 1 1 2 . . 1 1 1 . 10 . . . 2 1 . 3 . . . . 2 . . 2 . . Known Exits Taken 25 | . . 1 . . 1 . . 1 1 1 1 1 1 1 1 1 1 . . 1 1 1 1 1 . . 1 1 1 1 1 1 . 1 1 . . Unknown Exits Taken 6 | 1 1 . 1 1 . . . . . . . . . . . . . . . . . . . . . . . . . . . . 1 . . 1 . Scrap Searched 18 | . . 3 . 1 . . . . 2 1 . . . 1 . 4 1 . . . 1 3 . 1 . . . . . . . . . . . . . Spaces Dug 366 | . 12 . . 1 22 . . 19 2 . . . 14 2 . . . 18 1 40 2 4 . 4 33 . 42 21 . 1 9 24 17 7 26 24 21 Terrain Destroyed 817 | . 12 . . 16 71 . . 32 2 . . . 14 2 . . . 18 1 47 2 4 . 4 33 . 42 21 . 1 9 81 166 7 83 79 70 Melee 283 | . . . . 1 22 . . 19 2 . . . 14 2 . . . 18 1 40 2 4 . 4 33 . 42 16 . 1 9 24 17 7 5 . . Projectile 181 | . 12 . . . . . . . . . . . . . . . . . . . . . . . . . . 5 . . . . . . 32 62 70 AOE 353 | . . . . 15 49 . . 13 . . . . . . . . . . . 7 . . . . . . . . . . . 57 149 . 46 17 . Terrain Rammed . | . . . . . . . . . . . . . . . . . . . . . . . . . . . . . . . . . . . . . . Walls Destroyed . | . . . . . . . . . . . . . . . . . . . . . . . . . . . . . . . . . . . . . . Machines Disabled . | . . . . . . . . . . . . . . . . . . . . . . . . . . . . . . . . . . . . . . Actions | -11 -10 -10 -10 -9 -8 -7 -7 -7 -7 -7 -7 -6 -6 -6 -6 -6 -5 -5 -5 -5 -5 -5 -5 -4 -4 -4 -4 -4 -4 -4 -4 -3 -2 -2 -2 -1 -1 --------- Run | Yrd Mat Min Exi Min Mat Fac Was Fac Low Low Dat Pro Fac Low Low Zio Pro Fac Was Fac Upp Upp War Pro Fac Was Fac Ext Cet Arc Hub Res Res Tes Sec Acc Com Total 32428 | 75 1134 609 124 357 1118 208 312 2301 285 508 78 389 1540 284 354 1061 423 1461 188 2345 251 339 716 554 1512 79 2069 1019 84 81 711 1699 1482 931 1683 850 3214 Wait 3779 | . 325 17 . 13 26 . 70 180 4 56 . 62 350 6 11 233 153 155 19 139 16 11 107 29 144 . 117 158 5 31 54 216 158 311 93 85 425 Move 26919 | 39 706 567 124 310 1027 204 236 1960 278 448 78 300 1131 271 342 820 268 1261 164 2103 228 322 584 517 1257 76 1849 684 77 39 623 1371 1209 590 1484 725 2647 Hop 168 | . 9 6 . 8 13 . . 14 . . . 3 5 5 . . . 5 3 17 2 . 1 2 11 2 14 7 2 1 2 22 8 5 1 . . Pick Up 78 | 2 7 3 . 1 2 . . 10 1 . . 2 5 . . 1 . 4 . 8 1 . 1 . 4 1 6 1 . . . 1 2 1 8 1 5 Fast Attach 174 | 2 10 3 . . 2 1 3 6 . . . 7 4 . . 2 . 3 . 9 . 1 2 1 14 . 9 4 . 1 3 13 11 9 18 3 33 Attach 70 | . 7 1 . 1 5 . . 3 . . . . 2 . . . . 3 . 5 . . 1 . 6 . 5 3 . . 2 3 8 3 6 2 4 Detach 39 | . 8 1 . . . 1 1 1 . . . . 1 . . . . . . . . . . . . . 3 3 . . 2 4 6 . 6 . 2 Swap 94 | . 3 . . 4 7 1 1 15 . 3 . 5 4 . . 1 . 2 . 5 . . 1 . 6 . 5 1 . . 1 12 8 . 3 2 4 Drop 181 | . 8 5 . 2 3 . 1 16 . . . 8 11 . . 4 . 5 1 9 1 1 3 1 7 . 15 4 . . 3 9 8 4 12 3 37 Fire 247 | 32 51 5 . 13 8 . . 3 . . . . . . . . . . . 5 . . . . . . . 6 . . . 7 28 . 15 23 51 Melee 488 | . . 1 . 5 25 1 . 70 2 . . 2 27 2 1 . 2 23 1 45 3 4 . 4 63 . 46 29 . 9 10 40 36 8 28 1 . Ram . | . . . . . . . . . . . . . . . . . . . . . . . . . . . . . . . . . . . . . . Kick 4 | . . . . . . . . . . . . . . . . . . . . . . . . . . . . . . . . . . . 3 . 1 Crush . | . . . . . . . . . . . . . . . . . . . . . . . . . . . . . . . . . . . . . . Escape Stasis 44 | . . . . . . . . 4 . . . . . . . . . . . . . . . . . . . 29 . . . . . . 6 5 . Rewire 111 | . . . . . . . . . . . . . . . . . . . . . . . 16 . . . . 90 . . . . . . . . 5 Trap 20 | . . . . . . . . 19 . 1 . . . . . . . . . . . . . . . . . . . . . . . . . . . Miscellaneous 12 | . . . . . . . . . . . . . . . . . . . . . . . . . . . . . . . 11 1 . . . . . Route ------- -11/Scrapyard -10/Materials (discovered 5 exits: *Mat x3 / *Min / [*Sub]) -10/Mines (discovered 3 exits: *Mat x2 / *Exi) -10/Exiles -9/Mines -8/Materials (discovered 3 exits: *Fac x3) -7/Factory (discovered 4 exits: Fac x2 / Sto x2) -7/Waste -7/Factory (discovered 7 exits: *Fac x3 / *Sto x2 / *Low x2) -7/Lower Caves -7/Lower Caves (discovered 2 exits: *Fac / *Dat) -7/Data Miner -6/Proximity Caves -6/Factory (discovered 4 exits: *Fac x2 / *Low x2) -6/Lower Caves -6/Lower Caves (discovered 2 exits: *Fac / *Zio) -6/Zion -5/Proximity Caves -5/Factory (discovered 4 exits: Fac x4) -5/Waste -5/Factory (discovered 4 exits: *Fac x2 / *Upp x2) -5/Upper Caves -5/Upper Caves -5/Warlord -4/Proximity Caves -4/Factory (discovered 2 exits: *Upp / Ext) -4/Waste -4/Factory (discovered 4 exits: *Res x2 / *Upp / *Ext) -4/Extension (discovered 3 exits: *Res x2 / *Cet) -4/Cetus -4/Archives -4/Hub_04(d) (discovered 3 exits: *Res x3) -3/Research (discovered 2 exits: *Res x2) -2/Research (discovered 3 exits: *Acc x2 / *Tes) -2/Testing (discovered 3 exits: *Acc / *Sec / *Frg) -2/Section 7 -1/Access (discovered 2 exits: [Sur] / *Com) -1/Command (discovered 2 exits: [*Sur x2]) To Fleet Rendezvous History --------- Turn | Location | Event 8 | -11/Scrapyard | Discovered new exit (range 14) 90 | -11/Scrapyard | Entered Materials 145 | -10/Materials | Discovered new exit (range 11) 196 | -10/Materials | Discovered new exit (range 2) 294 | -10/Materials | Discovered new exit (range 4) 333 | -10/Materials | Build established: Mutant 440 | -10/Materials | Discovered new exit (range 14) 589 | -10/Materials | Learned location of 2 exits from Mines 602 | -10/Materials | Discovered new exit (range 10) 697 | -10/Materials | Learned 4 Subcaves zone layouts 870 | -10/Materials | Learned 4 Subcaves zone layouts 895 | -10/Materials | Entered Mines 896 | -10/Mines | Identified exit to Exiles 896 | -10/Mines | Identified exit to Materials 911 | -10/Mines | Learned Materials terminal intel 927 | -10/Mines | Found a damaged Exp. Sensor Array with a note attached 927 | -10/Mines | Found Prototype Device 927 | -10/Mines | Identified Exp. Sensor Array 953 | -10/Mines | Received a Rocket Launcher from a helpful Derelict 995 | -10/Mines | Discovered exit to Materials (range 6) 1085 | -10/Mines | Joined a pair of Derelicts in attacking an 0b10 outpost 1153 | -10/Mines | Deemed a non-threat by the Exiles lab entrance 1154 | -10/Mines | Entered Exiles 1163 | -10/Exiles | Met 8R-AWN 1170 | -10/Exiles | Met EX-HEX 1184 | -10/Exiles | Met EX-DEC 1186 | -10/Exiles | Learned location of Zion (-6) 1197 | -10/Exiles | Discovered new exit (range 10) 1200 | -10/Exiles | Entered Mines 1206 | -9/Mines | Assembled infested the area 1236 | -9/Mines | Learned Materials stockpile data 1241 | -9/Mines | Learned location of Storage (-7) 1308 | -9/Mines | Core integrity fell below 50% 1380 | -9/Mines | Discovered new exit (range 9) 1383 | -9/Mines | Entered Materials 1383 | -8/Materials | Evolved 4 slots: Propulsion x3, Utility x1 1385 | -8/Materials | Loaded intel: 12 terminal locations 1426 | -8/Materials | Discovered new exit (range 14) 1486 | -8/Materials | Central database locked down 1543 | -8/Materials | Discovered new exit (range 9) 1615 | -8/Materials | Identified exit to Factory 1630 | -8/Materials | Repaired Faulty Exp. Sensor Array? 1679 | -8/Materials | Build established: Scavenger-Sprinter 1694 | -8/Materials | Learned Factory repair station intel 1809 | -8/Materials | Entered Factory 1809 | -7/Factory | Evolved 2 slots: Utility x2 1810 | -7/Factory | Identified exit to Factory 1810 | -7/Factory | Identified exit to Storage 1811 | -7/Factory | Loaded intel: 6 repair station locations 1872 | -7/Factory | Sucked down chute 1872 | -7/Factory | Entered Waste 1873 | -7/Waste | Joined by Warlord forces that had cleared the area 1890 | -7/Waste | Found Powered Armor 1932 | -7/Waste | Discovered new exit (range 12) 2016 | -7/Waste | Entered Factory 2016 | -7/Factory | Accompanied by 20 allies 2123 | -7/Factory | Lost 3 allies 2131 | -7/Factory | Discovered exit to Storage (range 16) 2404 | -7/Factory | Discovered exit to Factory (range 9) 2416 | -7/Factory | First assault squad dispatched 2443 | -7/Factory | Build established: Sprinter 2548 | -7/Factory | Learned 2 Proximity Caves zone layouts 2608 | -7/Factory | Identified exit to Lower Caves 2709 | -7/Factory | Discovered exit to Lower Caves (range 5) 2724 | -7/Factory | Learned 2 Proximity Caves zone layouts 2742 | -7/Factory | Learned 2 Lower Caves zone layouts 2819 | -7/Factory | Repaired Imp. Propulsion Shielding 2821 | -7/Factory | Lost 3 parts (1n1u1w) 2839 | -7/Factory | Repaired Lgt. Nuclear Core? 2845 | -7/Factory | Learned location of Proximity Caves (-6) 2864 | -7/Factory | Repaired Cesium-ion Thruster+ 2929 | -7/Factory | Entered Lower Caves 2930 | -7/Lower Caves | Identified exit to Lower Caves 3004 | -7/Lower Caves | Entered another Lower Caves area 3050 | -7/Lower Caves | Discovered exit to Factory (range 8) 3053 | -7/Lower Caves | Identified exit to Data Miner 3100 | -7/Lower Caves | Build established: Scavenger-Sprinter 3169 | -7/Lower Caves | Entered Data Miner 3169 | -7/Data Miner | Discovered new exit (range 6) 3174 | -7/Data Miner | Met Data Miner 3178 | -7/Data Miner | Learned location of Section 7 (-2) 3178 | -7/Data Miner | Acquired the access code to Warlord's prototype stash 3182 | -7/Data Miner | Received God Mode back door access code from Data Miner 3187 | -7/Data Miner | Identified exit to Proximity Caves 3187 | -7/Data Miner | Entered Proximity Caves 3190 | -6/Proximity Caves | Learned location of 1 exit from Lower Caves 3199 | -6/Proximity Caves | Spotted B-75 Beast 3205 | -6/Proximity Caves | Unaware initiated a cargo recovery operation 3298 | -6/Proximity Caves | Found Prototype Processor 3298 | -6/Proximity Caves | Identified Exp. Signal Interpreter 3301 | -6/Proximity Caves | Found Prototype Launcher 3301 | -6/Proximity Caves | Identified Tactical Quantum Warhead 3313 | -6/Proximity Caves | Found Tactical Quantum Warhead 3352 | -6/Proximity Caves | Entered Factory 3352 | -6/Factory | Evolved 2 slots: Power x1, Utility x1 3556 | -6/Factory | Identified exit to Lower Caves 3670 | -6/Factory | Discovered new exit (range 15) 3673 | -6/Factory | Identified exit to Factory 3803 | -6/Factory | Loaded intel: 6 repair station locations 3852 | -6/Factory | Learned 4 Hub_04(d) zone layouts 3874 | -6/Factory | Build established: Scavenger-Scout 3891 | -6/Factory | Learned Extension terminal intel 3921 | -6/Factory | Loaded intel: 3 garrison access locations 3942 | -6/Factory | Learned location of 1 exit from Hub_04(d) 3953 | -6/Factory | Learned 4 Upper Caves zone layouts 3976 | -6/Factory | Learned location of Upper Caves (-4) 4009 | -6/Factory | Learned location of 1 exit from Upper Caves 4052 | -6/Factory | Learned 2 Lower Caves zone layouts 4062 | -6/Factory | Entered Lower Caves 4063 | -6/Lower Caves | Identified exit to Lower Caves 4102 | -6/Lower Caves | Attacked by a faux Warlord 4139 | -6/Lower Caves | Entered another Lower Caves area 4143 | -6/Lower Caves | Discovered exit to Factory (range 12) 4172 | -6/Lower Caves | Learned Factory trap positions 4182 | -6/Lower Caves | Acquired the password to a Derelict Tinkerer's latest research 4214 | -6/Lower Caves | Discovered new exit (range 5) 4215 | -6/Lower Caves | Identified exit to Zion 4232 | -6/Lower Caves | Entered Zion 4246 | -6/Zion | Discovered new exit (range 12) 4262 | -6/Zion | Learned Factory terminal intel 4327 | -6/Zion | Found Prototype Device 4327 | -6/Zion | Identified Mobile Refinery Mk. CCLXVII 4351 | -6/Zion | Learned Factory emergency access door positions 4363 | -6/Zion | Found CR-A16's Pointy Stick 4393 | -6/Zion | Met Imprinter 4398 | -6/Zion | Imprinted 4400 | -6/Zion | Declared Zion's savior 4457 | -6/Zion | Identified exit to Proximity Caves 4661 | -6/Zion | Entered Proximity Caves 4661 | -5/Proximity Caves | Accompanied by 4 allies 4678 | -5/Proximity Caves | Learned location of Armory (-4) 4721 | -5/Proximity Caves | Discovered exit to Factory (range 13) 4730 | -5/Proximity Caves | Spotter reported a threat 4807 | -5/Proximity Caves | Spotter reported a threat 4836 | -5/Proximity Caves | Spotter reported a threat 4880 | -5/Proximity Caves | Entered Factory 4880 | -5/Factory | Accompanied by 4 allies 4880 | -5/Factory | Evolved 2 slots: Utility x2 4881 | -5/Factory | Loaded intel: 79 trap records 4883 | -5/Factory | Loaded intel: 26 terminal locations 4934 | -5/Factory | Repaired Mni. Grenade Launcher 5092 | -5/Factory | Noticed a derelict Sapper rigging charges 5148 | -5/Factory | Retrieved Zion intel report: Component Stockpiles 5153 | -5/Factory | Retrieved Zion intel report: Prototype Schematics 5180 | -5/Factory | Search patrols dispatched 5185 | -5/Factory | Build established: Scavenger-Ninja 5211 | -5/Factory | Retrieved Zion intel report: Component Schematics 5212 | -5/Factory | Zion Heavy squad teleported in 5259 | -5/Factory | Retrieved Zion intel report: Guard Positions 5332 | -5/Factory | Fabricated Exp. Sensor Array? 5348 | -5/Factory | Retrieved Zion intel report: Main Access 5348 | -5/Factory | Identified exit to Factory 5385 | -5/Factory | Retrieved Zion intel report: Active Terminals 5390 | -5/Factory | Manually triggered Chute Trap 5390 | -5/Factory | Sucked down chute 5390 | -5/Factory | Entered Waste 5392 | -5/Waste | Spotted C-40 Crusher 5399 | -5/Waste | Met Warlord forces unprepared to attack 5405 | -5/Waste | EMP discharged 5415 | -5/Waste | Spotted C-40 Crusher 5415 | -5/Waste | Spotted C-40 Crusher 5419 | -5/Waste | Spotted C-40 Crusher 5419 | -5/Waste | Spotted C-40 Crusher 5429 | -5/Waste | Spotted C-40 Crusher 5433 | -5/Waste | Discovered new exit (range 10) 5435 | -5/Waste | Identified exit to Factory 5445 | -5/Waste | Lost 4 allies 5452 | -5/Waste | Entered Factory 5493 | -5/Factory | Discovered new exit (range 5) 5494 | -5/Factory | Identified exit to Upper Caves 5507 | -5/Factory | Imp. Hacking Suite fried by hacking feedback 5521 | -5/Factory | Incoming investigation squad redirected 5579 | -5/Factory | Retrieved Zion intel report: Active Terminals 5668 | -5/Factory | Retrieved Zion intel report: Branch Access 5674 | -5/Factory | Discovered exit to Factory (range 10) 5867 | -5/Factory | Repaired ECM Suite 5901 | -5/Factory | Retrieved Zion intel report: Unaware Analyses 5908 | -5/Factory | Retrieved Zion intel report: Trap Installations 5919 | -5/Factory | Discovered exit to Factory (range 15) 5930 | -5/Factory | Retrieved Zion intel report: Depthwide Sectors/-5 5937 | -5/Factory | Spotted B-75 Beast 5952 | -5/Factory | Retrieved Zion intel report: Prototype Stockpiles 5966 | -5/Factory | Retrieved Zion intel report: Unaware Schematics 5983 | -5/Factory | Retrieved Zion intel report: Unaware Analyses 6008 | -5/Factory | Retrieved Zion intel report: Unaware Schematics 6133 | -5/Factory | Incoming investigation squad redirected 6146 | -5/Factory | Lost 5 parts (2p1n1u1w) 6179 | -5/Factory | Build established: Hacker-Ninja 6221 | -5/Factory | Entered Upper Caves 6222 | -5/Upper Caves | Identified exit to Upper Caves 6226 | -5/Upper Caves | Found Alien Artifact 6292 | -5/Upper Caves | Attracted the attention of an 0b10 checkpoint 6298 | -5/Upper Caves | Entered another Upper Caves area 6331 | -5/Upper Caves | Learned Factory trap positions 6372 | -5/Upper Caves | Learned 4 Factory zone layouts 6385 | -5/Upper Caves | Discovered new exit (range 5) 6385 | -5/Upper Caves | Identified exit to Warlord 6394 | -5/Upper Caves | Entered Warlord 6402 | -5/Warlord | System corruption cleaned by Quarantine Array 6461 | -5/Warlord | Received a Watcher feed algorithm from an ecstatic Tinkerer 6481 | -5/Warlord | Rebuked by Warlord 6492 | -5/Warlord | Opened Warlord's prototype stash 6496 | -5/Warlord | Found Prototype Processor 6496 | -5/Warlord | Identified Exp. Armor Integrity Analyzer 6506 | -5/Warlord | Warlord's base attacked by MAIN.C 6558 | -5/Warlord | Opened side exit 6563 | -5/Warlord | Discovered new exit (range 9) 6564 | -5/Warlord | Identified exit to Proximity Caves 6661 | -5/Warlord | Entered Proximity Caves 6799 | -4/Proximity Caves | Learned location of Quarantine (-3) 6799 | -4/Proximity Caves | Spotter reported a threat 6812 | -4/Proximity Caves | Spotter reported a threat 6817 | -4/Proximity Caves | Discovered exit to Factory (range 15) 6820 | -4/Proximity Caves | Entered Factory 6820 | -4/Factory | Evolved 2 slots: Propulsion x1, Utility x1 6821 | -4/Factory | Identified exit to Extension 6823 | -4/Factory | Loaded intel: 104 trap records 6831 | -4/Factory | Spotted B-86 Titan 6891 | -4/Factory | Revealed the true nature of CR-A16's Pointy Stick 6894 | -4/Factory | Destroyed B-86 Titan 6912 | -4/Factory | Lost 4 parts (2p2u) 6937 | -4/Factory | Discovered new exit (range 5) 6942 | -4/Factory | Incoming investigation squad redirected 6958 | -4/Factory | Retrieved Zion intel report: Active Garrisons 6959 | -4/Factory | Zion Light squad teleported in 6971 | -4/Factory | Retrieved Zion intel report: Unaware Schematics 7052 | -4/Factory | Lost 4 parts (2n2u) 7070 | -4/Factory | Search patrols dispatched 7094 | -4/Factory | Incoming investigation squad redirected 7210 | -4/Factory | Incoming investigation squad redirected 7355 | -4/Factory | Fabricated Exp. Propulsion Shielding (x1) 7391 | -4/Factory | Fabricated Cld. Nuclear Pulse Thruster (x1) 7409 | -4/Factory | Fabricated Imp. Surge Thruster (x2) 7434 | -4/Factory | Manually triggered Chute Trap 7434 | -4/Factory | Sucked down chute 7434 | -4/Factory | Entered Waste 7436 | -4/Waste | Spotted C-40 Crusher 7439 | -4/Waste | Spotted C-40 Crusher 7443 | -4/Waste | Spotted C-40 Crusher 7444 | -4/Waste | Spotted C-40 Crusher 7446 | -4/Waste | Spotted C-40 Crusher 7449 | -4/Waste | EMP discharged 7449 | -4/Waste | Discovered new exit (range 13) 7449 | -4/Waste | Spotted C-40 Crusher 7451 | -4/Waste | Identified exit to Factory 7452 | -4/Waste | Entered Factory 7471 | -4/Factory | Retrieved Zion intel report: Active Terminals 7480 | -4/Factory | Discovered new exit (range 15) 7483 | -4/Factory | Identified exit to Research 7523 | -4/Factory | Repaired Mni. Grenade Launcher+? 7527 | -4/Factory | Identified Dimensional Node Initializer 7620 | -4/Factory | Repaired Mak. Sword 7660 | -4/Factory | Retrieved Zion intel report: Emergency Access 7674 | -4/Factory | Spotted B-86 Titan 7693 | -4/Factory | Destroyed B-86 Titan 7707 | -4/Factory | Allied Derelicts emerged from ambush trap array 7752 | -4/Factory | Retrieved Zion intel report: Active Garrisons 7759 | -4/Factory | Lost 3 allies 7808 | -4/Factory | Fabricated Adv. System Restoration Module (x2) 7831 | -4/Factory | Retrieved Zion intel report: Component Schematics 7839 | -4/Factory | Discovered new exit (range 15) 7841 | -4/Factory | Identified exit to Upper Caves 7899 | -4/Factory | Discovered exit to Research (range 5) 7911 | -4/Factory | Unchained authorized (DW-4LL) 8003 | -4/Factory | Retrieved Zion intel report: Trap Installations 8004 | -4/Factory | Zion Light squad teleported in 8018 | -4/Factory | DW-4LL burst out of a wall 8048 | -4/Factory | Retrieved Zion intel report: Depthwide Sectors/-3 8053 | -4/Factory | Spotted B-86 Titan 8053 | -4/Factory | Destroyed B-86 Titan 8059 | -4/Factory | Lost 3 allies 8070 | -4/Factory | Discovered exit to Extension (range 9) 8072 | -4/Factory | Retrieved Zion intel report: Prototype Stockpiles 8073 | -4/Factory | Zion Light squad teleported in 8078 | -4/Factory | Entered Extension 8079 | -4/Extension | Identified exit to Cetus 8080 | -4/Extension | Loaded intel: 16 terminal locations 8088 | -4/Extension | Rescued a captive Derelict 8135 | -4/Extension | Rescued a captive Derelict 8137 | -4/Extension | Rescued a captive Derelict 8137 | -4/Extension | Rescued a captive Derelict 8149 | -4/Extension | Zion Light squad teleported in 8153 | -4/Extension | Rescued a captive Derelict 8250 | -4/Extension | Spotted B-86 Titan 8262 | -4/Extension | Allies destroyed B-86 Titan 8269 | -4/Extension | Spotted B-86 Titan 8274 | -4/Extension | Discovered exit to Research (range 3) 8276 | -4/Extension | Destroyed B-86 Titan 8277 | -4/Extension | Unchained authorized (DW-4LL) 8283 | -4/Extension | Zion Fire squad teleported in 8286 | -4/Extension | Rescued A7 8328 | -4/Extension | First assault squad dispatched 8329 | -4/Extension | Rescued a captive Derelict 8330 | -4/Extension | Zion Hacking Resupply teleported in 8331 | -4/Extension | Rescued a captive Derelict 8376 | -4/Extension | Lost 11 allies 8403 | -4/Extension | Rescued a captive Derelict 8422 | -4/Extension | Retrieved Zion intel report: Prototype Schematics 8431 | -4/Extension | Retrieved Zion intel report: Component Schematics 8436 | -4/Extension | Retrieved Zion intel report: Emergency Access 8437 | -4/Extension | Zion Kinetic Resupply teleported in 8438 | -4/Extension | Incoming assault squad redirected 8450 | -4/Extension | Discovered exit to Research (range 10) 8579 | -4/Extension | Entered Cetus 8579 | -4/Cetus | Accompanied by 1 ally 8582 | -4/Cetus | Spotted Cetus Guard 8582 | -4/Cetus | Spotted Cetus Guard 8582 | -4/Cetus | Spotted Cetus Guard 8588 | -4/Cetus | Spotted Cetus Guard 8595 | -4/Cetus | Discovered new exit (range 16) 8598 | -4/Cetus | Identified exit to Archives 8599 | -4/Cetus | Entered Archives 8626 | -4/Archives | Discovered new exit (range 13) 8658 | -4/Archives | Identified exit to Hub_04(d) 8658 | -4/Archives | Entered Hub_04(d) 8660 | -4/Hub_04(d) | Zion Hacking Resupply teleported in 8665 | -4/Hub_04(d) | Found Prototype Hackware 8665 | -4/Hub_04(d) | Identified Exp. System Shield 8669 | -4/Hub_04(d) | Zion hero teleported in (99-TNT) 8673 | -4/Hub_04(d) | Zion Hacking Resupply teleported in 8678 | -4/Hub_04(d) | Found Prototype Hackware 8678 | -4/Hub_04(d) | Identified Exp. Hacking Suite 8694 | -4/Hub_04(d) | Spotted B-86 Titan 8698 | -4/Hub_04(d) | Destroyed B-86 Titan 8702 | -4/Hub_04(d) | Zion Heavy squad teleported in 8760 | -4/Hub_04(d) | Discovered exit to Research (range 15) 8774 | -4/Hub_04(d) | Discovered exit to Research (range 5) 8789 | -4/Hub_04(d) | Network Hub disabled 8796 | -4/Hub_04(d) | Retrieved Zion intel report: Active Garrisons 8800 | -4/Hub_04(d) | Retrieved Zion intel report: Component Schematics 8807 | -4/Hub_04(d) | Retrieved Zion intel report: Unaware Analyses 8807 | -4/Hub_04(d) | Spotted Lightning 8817 | -4/Hub_04(d) | Network Hub disabled 8833 | -4/Hub_04(d) | Network Hub disabled 8851 | -4/Hub_04(d) | Unchained authorized (DW-4LL) 8861 | -4/Hub_04(d) | Retrieved Zion intel report: Guard Positions 8891 | -4/Hub_04(d) | Entered Research 8891 | -3/Research | Evolved 2 slots: Utility x2 8970 | -3/Research | Repaired Imp. Surge Thruster+ 9052 | -3/Research | Repaired Cld. Cesium-ion Thruster 9085 | -3/Research | Retrieved Zion intel report: Unaware Analyses 9190 | -3/Research | Retrieved Zion intel report: Emergency Access 9203 | -3/Research | Retrieved Zion intel report: Depthwide Sectors/-2 9205 | -3/Research | Spotted B-86 Titan 9209 | -3/Research | Retrieved Zion intel report: Active Garrisons 9217 | -3/Research | Destroyed B-86 Titan 9227 | -3/Research | Retrieved Zion intel report: Component Stockpiles 9289 | -3/Research | Fabricated Exp. Propulsion Shielding (x1) 9308 | -3/Research | Discovered new exit (range 4) 9309 | -3/Research | Identified exit to Research 9311 | -3/Research | Retrieved Zion intel report: Component Schematics 9323 | -3/Research | Retrieved Zion intel report: Unaware Schematics 9356 | -3/Research | Spotted B-86 Titan 9362 | -3/Research | Destroyed B-86 Titan 9382 | -3/Research | Found Prototype Device 9382 | -3/Research | Identified Exp. Thermal Defense Suite 9402 | -3/Research | Assembled infested ambush trap array 9419 | -3/Research | Discovered exit to Research (range 8) 9423 | -3/Research | Zion Explosive Resupply teleported in 9471 | -3/Research | Found Prototype Launcher 9471 | -3/Research | Identified Mni. Smartbomb Launcher 9528 | -3/Research | Entered another Research area 9528 | -2/Research | Evolved 2 slots: Propulsion x1, Utility x1 9570 | -2/Research | Found Prototype Processor 9570 | -2/Research | Identified Exp. Core Analyzer 9596 | -2/Research | Spotted B-90 Cyclops 9598 | -2/Research | Destroyed B-90 Cyclops 9607 | -2/Research | Retrieved Zion intel report: Active Terminals 9642 | -2/Research | Discovered new exit (range 4) 9653 | -2/Research | Identified exit to Access 9668 | -2/Research | Retrieved Zion intel report: Trap Installations 9669 | -2/Research | Zion Hacker squad teleported in 9778 | -2/Research | First assault squad dispatched 9782 | -2/Research | Zion Heavy squad teleported in 9799 | -2/Research | Zion Light squad teleported in 9799 | -2/Research | Discovered exit to Access (range 5) 9866 | -2/Research | Found Prototype Protection 9866 | -2/Research | Identified Zio. Weapon Casing 10038 | -2/Research | Lost 3 parts (1p2u) 10049 | -2/Research | Incoming assault squad redirected 10055 | -2/Research | Repaired Exp. Propulsion Shielding 10074 | -2/Research | Spotted B-90 Cyclops 10101 | -2/Research | High security lockdown imminent 10101 | -2/Research | Destroyed B-90 Cyclops 10135 | -2/Research | Discovered new exit (range 9) 10140 | -2/Research | Entered Testing 10157 | -2/Testing | Found Prototype Device 10157 | -2/Testing | Identified Exp. Cloaking Device 10212 | -2/Testing | Repaired Lgt. Fission Core+ 10322 | -2/Testing | Repaired Cld. Impulse Thruster 10390 | -2/Testing | First assault squad dispatched 10412 | -2/Testing | Repaired Mni. Smartbomb Launcher 10415 | -2/Testing | Retrieved Zion intel report: Trap Installations 10425 | -2/Testing | Found Prototype Device 10425 | -2/Testing | Identified Exp. Actuator Array 10465 | -2/Testing | Central database locked down 10475 | -2/Testing | Retrieved Zion intel report: Component Stockpiles 10500 | -2/Testing | Discovered exit to Access (range 8) 10508 | -2/Testing | Retrieved Zion intel report: Component Schematics 10510 | -2/Testing | Retrieved Zion intel report: Prototype Stockpiles 10515 | -2/Testing | Retrieved Zion intel report: Branch Access 10521 | -2/Testing | Retrieved Zion intel report: Unaware Analyses 10525 | -2/Testing | Retrieved Zion intel report: Component Schematics 10594 | -2/Testing | Spotted Fortress 10609 | -2/Testing | Discovered new exit (range 5) 10609 | -2/Testing | Discovered new exit (range 6) 10610 | -2/Testing | Identified exit to Protoforge 10610 | -2/Testing | Identified exit to Section 7 10610 | -2/Testing | Entered Section 7 10645 | -2/Section 7 | Found Alien Artifact 10645 | -2/Section 7 | Identified Integrity Redistributor 10645 | -2/Section 7 | Used Integrity Redistributor, redistributed integrity from core (-63) 10655 | -2/Section 7 | Retrieved Zion intel report: Component Stockpiles 10662 | -2/Section 7 | Spotted B-90 Cyclops 10667 | -2/Section 7 | Destroyed B-90 Cyclops 10680 | -2/Section 7 | Found Alien Artifact 10680 | -2/Section 7 | Identified Core Reset Matrix 10680 | -2/Section 7 | Used Core Reset Matrix 10684 | -2/Section 7 | Detected hypermatrix surge 10684 | -2/Section 7 | Sensed 21 artifacts in vicinity 10694 | -2/Section 7 | Retrieved Zion intel report: Prototype Schematics 10705 | -2/Section 7 | Found Integrated Dissipator 10705 | -2/Section 7 | Installed Integrated Dissipator, increased core heat dissipation (+20) 10732 | -2/Section 7 | Found Integrated Dissipator 10732 | -2/Section 7 | Installed Integrated Dissipator, increased core heat dissipation (+20) 10738 | -2/Section 7 | Retrieved Zion intel report: Component Schematics 10742 | -2/Section 7 | Found Microwarp Drive 10749 | -2/Section 7 | Retrieved Zion intel report: Unaware Analyses 10751 | -2/Section 7 | Spotted S7 Guard 10759 | -2/Section 7 | Retrieved Zion intel report: Prototype Schematics 10761 | -2/Section 7 | Retrieved Zion intel report: Depthwide Sectors/-2 10786 | -2/Section 7 | Spotted B-99 Colossus 10794 | -2/Section 7 | Destroyed B-99 Colossus 10804 | -2/Section 7 | Found Integrated Dissipator 10804 | -2/Section 7 | Installed Integrated Dissipator, increased core heat dissipation (+20) 10805 | -2/Section 7 | Found Integrated Dissipator 10805 | -2/Section 7 | Installed Integrated Dissipator, increased core heat dissipation (+20) 10807 | -2/Section 7 | Found Integrated Dissipator 10807 | -2/Section 7 | Installed Integrated Dissipator, increased core heat dissipation (+20) 10813 | -2/Section 7 | Found LRC Inertial Stabilizer 10813 | -2/Section 7 | Installed LRC Inertial Stabilizer, increased mass support (+10) 10816 | -2/Section 7 | Found LRC Armor 10816 | -2/Section 7 | Installed LRC Armor, increased core integrity (+250) 10840 | -2/Section 7 | Spotted Striker 10840 | -2/Section 7 | Spotted Striker 10879 | -2/Section 7 | Found Sigix Sheargun 10880 | -2/Section 7 | Found Sigix Sheargun 10899 | -2/Section 7 | Integrated with Sigix Exoskeleton 10971 | -2/Section 7 | Found Transdimensional Reconstructor 10973 | -2/Section 7 | Found Hpw. Transdimensional Reconstructor 11028 | -2/Section 7 | Spotted Alpha 7 11030 | -2/Section 7 | Spotted Alpha 7 11110 | -2/Section 7 | Discovered exit to Access (range 15) 11132 | -2/Section 7 | Scanned by Researcher 11133 | -2/Section 7 | Intercept squad dispatched 11135 | -2/Section 7 | Warped through subspace 11142 | -2/Section 7 | Spotted S7 Guard 11145 | -2/Section 7 | Spotted Combat Programmer 11173 | -2/Section 7 | Sigix Exoskeleton integrity reduced to 80% 11213 | -2/Section 7 | Core integrity fell below 50% 11214 | -2/Section 7 | Spotted Tracker 11216 | -2/Section 7 | Build established: Alien-Sigix 11218 | -2/Section 7 | Spotted Investigator 11218 | -2/Section 7 | Spotted Tracker 11220 | -2/Section 7 | Entered Access 11220 | -1/Access | Evolved 2 slots: Weapon x2 11225 | -1/Access | Emitted hypermatrix ping 11230 | -1/Access | Assembled emerged from beneath the floor 11372 | -1/Access | Intercept squad dispatched 11403 | -1/Access | Spotted Tracker 11404 | -1/Access | Spotted Tracker 11412 | -1/Access | Discovered new exit (range 15) 11433 | -1/Access | Assembled emerged from beneath the floor 11434 | -1/Access | Destroyed Tracker 11440 | -1/Access | Allies destroyed Tracker 11456 | -1/Access | Spotted B-99 Colossus 11457 | -1/Access | Destroyed B-99 Colossus 11462 | -1/Access | Spotted B-99 Colossus 11473 | -1/Access | Spotted Combat Programmer 11499 | -1/Access | Spotted Combat Programmer 11502 | -1/Access | Assembled emerged from beneath the floor 11527 | -1/Access | Assembled emerged from beneath the floor 11589 | -1/Access | Assembled emerged from beneath the floor 11595 | -1/Access | Discovered new exit (range 17) 11605 | -1/Access | Entered Command 11610 | -1/Command | Emitted hypermatrix ping 11615 | -1/Command | Assembled emerged from beneath the floor 11615 | -1/Command | Disengaged cave seal 11615 | -1/Command | Zionites emerged from the dark tunnel 11619 | -1/Command | Assembled emerged from beneath the floor 11666 | -1/Command | Assembled emerged from beneath the floor 11687 | -1/Command | Retrieved Zion intel report: Trap Installations 11690 | -1/Command | Retrieved Zion intel report: Component Schematics 11749 | -1/Command | Assembled emerged from beneath the floor 11772 | -1/Command | Disengaged cave seal 11772 | -1/Command | Zionites emerged from the dark tunnel 11783 | -1/Command | Retrieved Zion intel report: Branch Access 11825 | -1/Command | Retrieved Zion intel report: Component Stockpiles 11829 | -1/Command | Retrieved Zion intel report: Prototype Schematics 11855 | -1/Command | First assault squad dispatched 11888 | -1/Command | Spotted Combat Programmer 11889 | -1/Command | Spotted Combat Programmer 11904 | -1/Command | Allies destroyed Combat Programmer 11907 | -1/Command | Spotted M Guard 11910 | -1/Command | Spotted M Guard 11923 | -1/Command | Allies destroyed M Guard 11924 | -1/Command | Allies destroyed M Guard 11924 | -1/Command | All MAIN.C guards destroyed 11928 | -1/Command | Found Prototype Reactor 11928 | -1/Command | Identified Zero-point Reactor 11932 | -1/Command | Found Prototype Device 11932 | -1/Command | Identified AEGIS Remote Shield 11939 | -1/Command | Found Prototype Device 11939 | -1/Command | Identified Thermal Barrier 11946 | -1/Command | Found Exp. Targeting Computer 11948 | -1/Command | Found Zero-point Reactor 11949 | -1/Command | High security lockdown imminent 11954 | -1/Command | Lost 7 allies 11970 | -1/Command | Met MAIN.C 11981 | -1/Command | 0b10 Conduit disabled 11987 | -1/Command | Core integrity fell below 50% 11997 | -1/Command | MAIN.C's shell transforms into a squad of autonomous robots 11997 | -1/Command | Allies destroyed MAIN.C Shell 11997 | -1/Command | Spotted M Shell/Def 11997 | -1/Command | Spotted M Shell/Atk 11997 | -1/Command | Spotted M Shell/Def 11997 | -1/Command | Spotted M Shell/Atk 11997 | -1/Command | Spotted M Shell/Atk 11997 | -1/Command | Spotted M Shell/Def 11997 | -1/Command | Spotted M Shell/Atk 11997 | -1/Command | Spotted M Shell/Def 11999 | -1/Command | MAIN.C activated Command garrisons 12015 | -1/Command | Allies destroyed M Shell/Atk 12023 | -1/Command | Destroyed M Shell/Def 12024 | -1/Command | Sigix Exoskeleton integrity reduced to 60% 12046 | -1/Command | Destroyed MAIN.C 12048 | -1/Command | Lost 6 allies 12051 | -1/Command | Sigix Exoskeleton integrity reduced to 40% 12060 | -1/Command | Discovered new exit (range 18) 12369 | -1/Command | Discovered new exit (range 38) 12369 | -1/Command | Discovered new exit (range 107) 12369 | -1/Command | Extracted map data and part IDs from MAIN.C's data core 12372 | -1/Command | Found Prototype Protection 12372 | -1/Command | Identified Zio. Shade Armor 12389 | -1/Command | Found Exp. Weapon Cycler 12470 | -1/Command | Found Prototype Protection 12470 | -1/Command | Identified Zio. Weapon Casing 12560 | -1/Command | Assembled emerged from beneath the floor 12581 | -1/Command | Assembled emerged from beneath the floor 12659 | -1/Command | Assembled emerged from beneath the floor 12783 | -1/Command | Found Cld. Nova Cannon 12820 | -1/Command | Found Exp. System Purifier 12823 | -1/Command | Found Gamma Refractor 12832 | -1/Command | Found Zero-point Reactor 12894 | -1/Command | Found Thermal Barrier 13047 | *** | Heading to fleet! Last Messages --------------- as-58267 melds with Sigix Exoskeleton. as-02178 melds with Sigix Exoskeleton. 12751_ Dropped Adv. Point Defense System. as-80216 melds with Sigix Exoskeleton. 12783_ Acquired Cld. Nova Cannon. 12818_ Dropped Cld. Nova Cannon. 12820_ Dropped Adv. Particle Charger. 12820_ Acquired Exp. System Purifier. 12823_ Acquired Gamma Refractor. 12828_ Dropped Gamma Refractor. 12833_ Dropped Zero-point Reactor. 12845_ System corrupted: Matter fused (-5). 12869_ Exp. System Purifier purges 1% system corruption (1%). 12892_ Exp. System Purifier purges 1% system corruption (0%). 12892_ Discarded Exp. System Purifier. 12892_ Discarded Imp. Targeting Computer. 12894_ Acquired Thermal Barrier. 12906_ Acquired 65 matter. Map ----- +----------------------------------------------------+ | ####### ! + #####################????????? | | ####### # + ###################???????? | | ####### #+##+##### ####################??????? | | ####### + #####################?????? | | ####### # = #########################?? | | ######"##### =%! ########################### | | + [ !##### ########################### | | ####"# ##### ########################### | | ###### ##### ########################### | | ###### // #####+########################### | | / ### ######################## | | ### # ################# | | ### + ################# | | ######### # ################# | | %= # ## ] # # ################# | | #### # # * ################# | | + ####+### ################# | | # ####### ### ######+################## | | # ############# ### " ################## | | # #################### ### ################## | | #+###### ################ ################## | | !!## ######### ### | | ! !!## " ############### T### | | ## ###############+#+######"""#### | | *[ ##### ##### ### ####"""#### | | ##!+####### ##### XZ### #]]] =### | | #[%*! # ### & #][] =### | | #=*! ! # ### ]!!!! =### | | +!! # ^ ^ ########### "" # ! **==### | | ## # ^^^ ^ ########### """" ########### | | ## # ########### """" ########### | | ## # ########### "" ########### | | ## [ " ########### ########### | | ## %! # # ## ########### | | ## [ # # ## "" ########### | | ## =%! # # ## ! """" ########### | | ## [[* " # ## """" ########### | | ## % # # !! ## "" ########### | | ## " #% =! ## ########### | | ## " ]! #%%=! ## #####"""""" | | ## " !%! + ##########"#####"" | | ## % " *! # % #########"#####""""" | | ## " #####+####### #####"""""" | | ###### #""# ####*####### ! #####" " | | ####%####### #####"" "" | | ####*####### #####"" "" | | #############+## ####!###"### ##### " " | | # ##! # %=###!!!!%!!+ ##### " | | # !! ## # = ########### ##### " | | # !! ## # ########### #####" | +----------------------------------------------------+ Best States ------------- Heat Dissipation 222 Energy Generation 75 Energy Capacity 890 Matter Stores 300 Matter Capacity 300 Sight Range 22 Robot Scan Range 20 Terrain Scan Range 14 Terrain Scan Density 85 ECM Strength 3 Cloak Strength 4 Armor Coverage 225 Resistance: KI 50 Resistance: TH 50 Resistance: EX 50 Resistance: EM 50 Resistance: I 50 Resistance: S 50 Resistance: P 50 Propulsion Shielding 90 Utility Shielding 66 Point Defense Rating 240 Weapon Cycling 30 Evasion (%) 80 Targeting Accuracy 18 Core Analysis 8 Particle Charging 25 Offensive Hacking 42 Defensive Hacking 20 Authchip Count 3 Trap Extractor Capacity 8 Item Schematics ----------------- Exp. Q-thruster | -2/Section 7 | Z-intel Spectral Analyzer | -2/Section 7 | Z-intel Imp. Diametric Drive | -2/Section 7 | Z-intel Centrium Greatsword | -2/Section 7 | Z-intel Exp. Actuator Array | -2/Section 7 | Z-intel Kinetic Spear | -2/Section 7 | Z-intel Tactical Quantum Warhead | -2/Section 7 | Z-intel Exp. Coolant Injector | -2/Section 7 | Z-intel Exp. Signal Interpreter | -2/Section 7 | Z-intel Exp. Gyrokinetic Inverter | -2/Section 7 | Z-intel Exp. Hacking Suite | -2/Section 7 | Z-intel Imp. Phase Shifter | -2/Section 7 | Z-intel Adv. Weight Redist. System | -2/Section 7 | Z-intel Imp. Remote Force Field | -2/Section 7 | Z-intel Imp. Armor Integrity Analyzer | -2/Section 7 | Z-intel Seismic Detector | -2/Section 7 | Z-intel Hvy. Shock Bomb Launcher | -2/Section 7 | Z-intel Adv. Medium Treads | -2/Section 7 | Z-intel Lance | -2/Section 7 | Z-intel Com. Matter Pod | -2/Section 7 | Z-intel Energy Well | -2/Section 7 | Z-intel Adv. System Shield | -2/Section 7 | Z-intel Graphene Brace | -2/Section 7 | Z-intel Adv. Signal Interpreter | -2/Section 7 | Z-intel Focal Shield | -2/Section 7 | Z-intel Gravity Flail | -2/Section 7 | Z-intel Stealth Drone Bay | -2/Section 7 | Z-intel Adv. Energy Well | -2/Section 7 | Z-intel Prc. Energy Filter | -2/Section 7 | Z-intel Prc. Phase Gun | -2/Section 7 | Z-intel Exp. Heat Sink | -2/Section 7 | Z-intel Exp. Core Analyzer | -2/Section 7 | Z-intel Exp. Cooling System | -2/Section 7 | Z-intel Plasma Sword | -2/Section 7 | Z-intel Com. Linear Accelerator | -2/Section 7 | Z-intel Enh. Multireflex Exoskeleton | -2/Section 7 | Z-intel Prc. Matter Filter | -2/Section 7 | Z-intel Nuclear Pulse Array | -1/Command | Z-intel Imp. System Restoration Module | -1/Command | Z-intel Linear Gravjet | -1/Command | Z-intel Adv. ECM Suite | -1/Command | Z-intel Imp. Heavy Treads | -1/Command | Z-intel Remote Force Field | -1/Command | Z-intel Adv. Heavy Treads | -1/Command | Z-intel Imp. Melee Analysis Suite | -1/Command | Z-intel Micro-nuke Launcher | -1/Command | Z-intel Adv. Trap Extractor | -1/Command | Z-intel Adv. Drone Bay | -1/Command | Z-intel Lrn. Sensor Array | -1/Command | Z-intel Point Defense System | -1/Command | Z-intel System Shield | -1/Command | Z-intel HERF Cannon | -1/Command | Z-intel Adv. Transmission Jammer | -1/Command | Z-intel Exp. Targeting Computer | -1/Command | Z-intel Exp. Energy Well | -1/Command | Z-intel Centrium Heavy Armor Plating | -1/Command | Z-intel Plasma Lance | -1/Command | Z-intel Exp. Terrain Scan Processor | -1/Command | Z-intel Exp. Biometal Medium Treads | -1/Command | Z-intel Imp. Energy Well | -1/Command | Z-intel Adv. EM Shield | -1/Command | Z-intel Robot Schematics ------------------ None Fabricated ------------ Exp. Sensor Array | x1 | -5/Factory | Authchip Exp. Propulsion Shielding | x1 | -4/Factory | Authchip Cld. Nuclear Pulse Thruster | x1 | -4/Factory | Authchip Imp. Surge Thruster | x2 | -4/Factory | Authchip Adv. System Restoration Module | x2 | -4/Factory | Authchip Exp. Propulsion Shielding | x1 | -3/Research Repaired ---------- Exp. Sensor Array | 62% | -8/Materials | Broken Imp. Propulsion Shielding | 21% | -7/Factory Lgt. Nuclear Core | 8% | -7/Factory Cesium-ion Thruster | 28% | -7/Factory Mni. Grenade Launcher | 74% | -5/Factory ECM Suite | 5% | -5/Factory Mni. Grenade Launcher | 32% | -4/Factory Mak. Sword | 15% | -4/Factory Imp. Surge Thruster | 17% | -3/Research Cld. Cesium-ion Thruster | 37% | -3/Research Exp. Propulsion Shielding | 6% | -2/Research Lgt. Fission Core | 5% | -2/Testing Cld. Impulse Thruster | 36% | -2/Testing Mni. Smartbomb Launcher | 61% | -2/Testing Studied --------- None Alien Tech Used ----------------- Integrity Redistributor Core Reset Matrix Integrated Dissipator Microwarp Drive LRC Inertial Stabilizer LRC Armor Sigix Exoskeleton Sigix Sheargun Transdimensional Reconstructor Achievements -------------- Alien Attack Integration Complete Most Wanted Sacrificial Teamwork Seal Team Z Vwoop! Challenges ------------ None Game ------ Seed InsulationSystemSubcomponent Manual? 0 Play Time 05:36:18 Cumulative 623.8 hours Start 2025.11.08 @ 11:52:16 End 2025.11.08 @ 17:33:28 Sessions 1 Manual Loads 0 Difficulty Rogue Special Mode None Game No. 258 Rogue 258 Adventurer 0 Explorer 0 Win Type 2 Total 47 Types 20/4/8/2/6/1/0/3/0/3 Lore% 96 Gallery% 88 Achievement% 76 Wizard Run 0 Options --------- Layout 1 ASCII 0 Keyboard 0 Movement Numpad Keybinds 0 Fullscreen 1 Font 24/Smallcaps Map View 50x35 Zoom Use 0% Tactical HUD 1 Map Filters NONE Filters NONE Steam 1 RUN: 5347d826-4ba0-4e2f-b5d4-1e1760477b82